{"text_format":"1","workbook":"xlsx","n_sheets":5,"sheets":["Cerere de Finanţare","Anexa 1","Anexa 2","Anexa 3","Asociati"],"not_rendered":{"charts":0,"images":5,"macros":1,"external_links":0,"defined_names":1,"comments":0,"pivot_tables":0},"unopened":[],"bounds":{"document_bytes":16777216,"sheet_cells":100000,"rows_first":2000,"rows_last":500,"rows_between":2000,"halvings":0,"cell_chars":16384,"cell_head_chars":4096},"cells_cut":0,"cells_raw":0,"read":"whole","date_system":"1900"}

{"sheet":"Cerere de Finanţare","index":0,"n_rows":674,"n_cols":57,"rows_kept":674,"cut":false,"hidden":false,"merged":[[453,0,453,3],[453,4,453,41],[453,42,453,50],[453,51,453,60],[454,0,454,60],[455,0,455,3],[455,4,455,41],[455,42,455,50],[455,51,455,60],[456,0,456,60],[457,0,457,3],[457,4,457,41],[464,0,464,3],[431,7,431,41],[510,0,510,29],[514,0,514,29],[514,57,514,60],[489,0,489,29],[486,0,486,29],[466,0,466,3],[466,4,466,41],[466,51,466,60],[468,0,468,3],[468,4,468,41],[468,42,468,50],[468,51,468,60],[467,0,467,3],[467,4,467,41],[467,42,467,50],[495,0,495,29],[492,0,492,29],[491,0,491,29],[322,52,322,60],[367,0,367,3],[367,4,367,41],[367,42,367,50],[367,51,367,60],[368,0,368,3],[405,0,405,60],[464,4,464,41],[464,42,464,50],[464,51,464,60],[465,0,465,3],[465,4,465,41],[465,42,465,50],[467,51,467,60],[459,0,459,3],[459,4,459,41],[485,0,485,29],[480,0,480,29],[478,0,478,29],[477,0,477,29],[475,0,475,29],[474,0,474,29],[472,0,472,44],[439,0,439,60],[438,0,438,60],[437,0,437,60],[406,0,406,60],[470,42,470,60],[463,42,463,50],[463,51,463,60],[465,51,465,60],[466,42,466,50],[632,0,632,60],[633,0,633,60],[634,0,634,60],[599,50,599,60],[509,0,509,29],[508,0,508,29],[507,0,507,29],[506,0,506,29],[505,0,505,29],[504,0,504,29],[503,0,503,29],[502,0,502,29],[500,0,500,29],[496,0,496,29],[523,42,523,49],[524,42,524,49],[526,0,526,29],[600,0,613,16],[541,0,541,60],[539,0,539,60],[538,1,538,28],[529,0,529,29],[528,0,528,29],[527,0,527,29],[525,0,525,29],[521,0,521,29],[520,0,520,29],[518,0,518,29],[523,30,523,34],[525,30,525,34],[525,35,525,41],[525,42,525,49],[525,50,525,54],[525,55,525,60],[522,0,522,29],[523,0,523,29],[617,17,617,49],[617,50,617,60],[619,17,619,49],[619,50,619,60],[671,13,671,34],[469,0,469,3],[469,4,469,41],[469,42,469,50],[469,51,469,60],[671,0,671,12],[669,43,669,46],[669,47,669,56],[645,0,645,2],[645,3,645,6],[645,8,645,9],[645,10,645,12],[470,0,470,3],[470,4,470,41],[618,17,618,49],[639,0,639,14],[511,0,511,29],[494,0,494,29],[629,0,629,60],[630,0,630,60],[631,0,631,60],[358,0,358,3],[358,4,358,41],[358,42,358,50],[358,51,358,60],[361,0,361,3],[361,4,361,41],[361,42,361,50],[361,51,361,60],[360,0,360,3],[360,4,360,41],[360,42,360,50],[360,51,360,60],[375,4,375,41],[374,0,374,3],[374,4,374,41],[374,42,374,50],[374,51,374,60],[373,4,373,41],[372,0,372,3],[372,42,372,50],[372,51,372,60],[373,42,373,50],[373,51,373,60],[366,0,366,3],[366,4,366,41],[366,42,366,50],[366,51,366,60],[370,0,370,3],[370,4,370,41],[370,42,370,50],[370,51,370,60],[362,4,362,41],[459,42,459,50],[459,51,459,60],[460,0,460,3],[460,4,460,41],[460,42,460,50],[460,51,460,60],[461,0,461,3],[461,4,461,41],[461,42,461,50],[461,51,461,60],[462,0,462,3],[462,4,462,41],[462,42,462,50],[462,51,462,60],[463,0,463,3],[463,4,463,41],[457,42,457,50],[457,51,457,60],[458,0,458,3],[458,4,458,41],[458,42,458,50],[458,51,458,60],[449,0,449,3],[449,4,449,41],[449,42,449,50],[449,51,449,60],[450,0,450,3],[450,4,450,41],[450,42,450,50],[450,51,450,60],[451,0,451,3],[451,4,451,41],[451,42,451,50],[451,51,451,60],[452,0,452,41],[452,42,452,60],[444,0,444,3],[444,4,444,41],[444,42,444,50],[444,51,444,60],[445,0,445,3],[445,4,445,41],[445,42,445,50],[445,51,445,60],[446,0,446,3],[446,4,446,41],[446,42,446,50],[446,51,446,60],[447,0,447,3],[447,4,447,41],[447,42,447,50],[447,51,447,60],[448,0,448,3],[448,4,448,41],[448,42,448,50],[448,51,448,60],[440,0,440,3],[440,4,440,41],[440,42,440,50],[440,51,440,60],[441,0,441,3],[441,4,441,41],[441,42,441,50],[441,51,441,60],[442,0,442,3],[442,4,442,41],[442,42,442,50],[442,51,442,60],[443,0,443,3],[443,4,443,41],[443,42,443,50],[443,51,443,60],[425,0,425,41],[425,42,425,50],[425,51,425,60],[426,0,426,41],[426,42,426,50],[426,51,426,60],[427,0,427,41],[427,42,427,60],[429,0,429,43],[432,7,432,41],[432,42,433,60],[433,7,433,41],[434,7,434,41],[434,42,434,50],[434,51,434,60],[435,7,435,60],[436,0,436,60],[419,0,419,60],[420,0,420,3],[420,4,420,41],[420,42,420,50],[420,51,420,60],[421,0,421,3],[421,4,421,41],[421,42,421,50],[421,51,421,60],[422,0,422,3],[422,4,422,41],[422,42,422,50],[422,51,422,60],[424,0,424,3],[424,4,424,41],[424,42,424,50],[424,51,424,60],[423,0,423,3],[423,4,423,41],[423,42,423,50],[423,51,423,60],[417,0,417,3],[415,0,415,3],[415,4,415,41],[415,42,415,50],[415,51,415,60],[416,0,416,60],[417,4,417,41],[417,42,417,50],[417,51,417,60],[418,0,418,3],[418,4,418,41],[418,42,418,50],[418,51,418,60],[412,0,412,3],[412,4,412,41],[412,42,412,50],[412,51,412,60],[413,0,413,3],[413,4,413,41],[413,42,413,50],[413,51,413,60],[414,0,414,3],[414,4,414,41],[414,42,414,50],[414,51,414,60],[407,0,407,3],[407,4,407,41],[407,42,407,60],[408,0,408,41],[408,42,408,50],[408,51,408,60],[409,0,409,41],[409,42,409,50],[409,51,409,60],[410,0,410,3],[410,4,410,41],[410,42,410,50],[410,51,410,60],[411,0,411,3],[411,4,411,41],[411,42,411,50],[411,51,411,60],[403,7,403,41],[403,42,403,50],[403,51,403,60],[404,7,404,60],[388,0,388,3],[388,4,388,41],[388,42,388,50],[388,51,388,60],[389,0,389,3],[389,4,389,41],[389,42,389,50],[389,51,389,60],[390,0,390,3],[390,4,390,41],[390,42,390,50],[390,51,390,60],[391,0,391,3],[391,4,391,41],[391,42,391,50],[391,51,391,60],[394,0,394,3],[387,42,387,50],[387,51,387,60],[382,4,382,41],[382,42,382,50],[382,51,382,60],[383,0,383,3],[383,4,383,41],[383,42,383,50],[395,0,395,3],[395,4,395,41],[395,42,395,50],[395,51,395,60],[396,0,396,41],[396,42,396,60],[398,0,398,42],[400,7,400,41],[401,7,401,41],[401,42,402,60],[402,7,402,41],[377,4,377,41],[378,4,378,41],[382,0,382,3],[383,51,383,60],[384,0,384,3],[384,4,384,41],[384,42,384,50],[384,51,384,60],[394,4,394,41],[394,42,394,50],[394,51,394,60],[392,0,392,3],[392,4,392,41],[392,42,392,50],[392,51,392,60],[393,0,393,3],[393,4,393,41],[393,42,393,50],[393,51,393,60],[380,0,380,3],[380,4,380,41],[380,42,380,50],[380,51,380,60],[381,0,381,3],[381,4,381,41],[381,42,381,50],[381,51,381,60],[386,4,386,41],[386,42,386,50],[386,51,386,60],[387,0,387,3],[387,4,387,41],[7,36,8,60],[13,36,21,60],[252,56,253,59],[256,56,257,59],[268,1,268,10],[268,12,268,17],[316,52,316,60],[317,0,317,34],[317,35,317,43],[317,44,317,51],[317,52,317,60],[323,0,323,34],[315,35,315,43],[315,44,315,51],[315,52,315,60],[316,0,316,34],[305,0,305,34],[305,35,305,43],[305,44,305,51],[305,52,305,60],[306,0,306,34],[306,35,306,43],[306,44,306,51],[306,52,306,60],[307,0,307,34],[307,35,307,43],[307,44,307,51],[307,52,307,60],[308,0,308,34],[312,0,312,34],[312,35,312,43],[288,35,288,43],[673,0,673,7],[659,12,659,59],[661,12,661,59],[88,1,92,13],[80,1,84,13],[649,0,649,38],[649,40,649,59],[651,0,651,5],[653,0,653,19],[653,20,653,30],[651,6,651,30],[655,0,655,51],[655,52,655,59],[657,0,657,5],[657,6,657,59],[665,0,665,3],[665,4,665,14],[665,15,665,59],[667,0,667,60],[669,0,669,10],[669,12,669,27],[298,44,298,51],[298,52,298,60],[313,52,313,60],[314,0,314,34],[314,35,314,43],[314,44,314,51],[314,52,314,60],[357,51,357,60],[312,44,312,51],[312,52,312,60],[313,0,313,34],[600,17,600,49],[600,50,600,60],[614,0,616,16],[614,17,614,49],[614,50,614,60],[616,50,616,60],[617,0,619,16],[29,48,29,59],[100,33,100,43],[101,33,101,43],[137,1,137,41],[315,0,315,34],[323,35,323,43],[302,0,302,34],[302,35,302,43],[302,44,302,51],[302,52,302,60],[303,0,303,34],[303,35,303,43],[303,44,303,51],[303,52,303,60],[308,35,308,43],[308,44,308,51],[316,35,316,43],[286,0,286,34],[261,4,261,40],[259,19,259,41],[259,42,259,48],[259,49,259,55],[260,14,260,18],[260,19,260,41],[377,51,377,60],[663,21,663,52],[641,0,641,4],[641,5,641,12],[641,14,641,17],[641,18,641,31],[641,33,641,37],[641,38,641,57],[643,0,643,4],[643,5,643,18],[643,21,643,23],[643,25,643,37],[643,39,643,42],[643,44,643,59],[645,14,645,15],[645,16,645,17],[635,15,635,59],[637,15,637,59],[635,0,635,14],[645,19,645,20],[645,21,645,23],[645,25,645,28],[645,30,645,36],[645,38,645,45],[645,47,645,56],[647,0,647,10],[647,11,647,21],[647,23,647,25],[647,26,647,36],[647,38,647,42],[647,43,647,59],[637,0,637,14],[636,0,636,14],[288,44,288,51],[288,52,288,60],[292,0,292,34],[289,35,289,43],[289,44,289,51],[289,52,289,60],[290,0,290,34],[290,35,290,43],[268,47,268,56],[270,0,270,34],[270,35,270,43],[270,44,270,51],[270,52,270,60],[271,0,271,34],[271,35,271,43],[271,44,271,51],[271,52,271,60],[268,20,268,24],[268,26,268,31],[268,33,268,45],[273,0,273,34],[287,35,287,43],[287,44,287,51],[287,52,287,60],[288,0,288,34],[290,44,290,51],[290,52,290,60],[291,0,291,34],[291,35,291,43],[291,44,291,51],[291,52,291,60],[273,44,273,51],[300,35,300,43],[300,44,300,51],[300,52,300,60],[301,0,301,34],[301,35,301,43],[301,44,301,51],[301,52,301,60],[618,50,618,60],[583,17,583,49],[584,17,584,49],[587,17,587,49],[579,50,579,60],[580,50,580,60],[581,50,581,60],[582,50,582,60],[583,50,583,60],[584,50,584,60],[587,50,587,60],[590,0,593,16],[385,51,385,60],[386,0,386,3],[371,0,371,3],[318,35,318,43],[318,44,318,51],[320,0,320,34],[321,0,321,34],[322,0,322,34],[319,35,319,43],[320,35,320,43],[321,35,321,43],[322,35,322,43],[319,44,319,51],[299,0,299,34],[299,35,299,43],[299,44,299,51],[299,52,299,60],[300,0,300,34],[308,52,308,60],[309,0,309,34],[309,35,309,43],[309,44,309,51],[316,44,316,51],[323,44,323,51],[323,52,323,60],[326,0,326,34],[326,35,326,43],[324,0,324,34],[325,0,325,34],[319,0,319,34],[309,52,309,60],[310,0,310,34],[310,35,310,43],[310,44,310,51],[310,52,310,60],[311,0,311,34],[311,35,311,43],[311,44,311,51],[311,52,311,60],[313,35,313,43],[313,44,313,51],[324,35,324,43],[324,44,324,51],[324,52,324,60],[318,0,318,34],[320,44,320,51],[321,44,321,51],[322,44,322,51],[319,52,319,60],[318,52,318,60],[320,52,320,60],[321,52,321,60],[590,17,590,49],[593,17,593,49],[590,50,590,60],[492,35,492,41],[325,35,325,43],[325,44,325,51],[325,52,325,60],[350,7,353,41],[368,4,368,41],[368,42,368,50],[368,51,368,60],[495,42,495,49],[493,50,493,54],[493,55,493,60],[484,30,484,34],[484,35,484,41],[484,42,484,49],[484,50,484,54],[484,55,484,60],[485,30,485,49],[485,50,485,60],[489,30,489,34],[489,35,489,41],[474,30,475,60],[491,30,491,34],[257,1,257,13],[258,1,258,13],[259,1,259,13],[254,14,254,18],[257,14,257,18],[259,14,259,18],[254,56,254,59],[255,56,255,59],[258,56,260,59],[257,19,257,41],[257,42,257,48],[257,49,257,55],[258,14,258,18],[258,19,258,41],[258,42,258,48],[258,49,258,55],[254,19,254,41],[254,42,254,48],[254,49,254,55],[255,14,255,18],[255,19,255,41],[255,42,255,48],[255,49,255,55],[256,14,256,18],[256,19,256,41],[260,42,260,48],[260,49,260,55],[260,1,260,13],[256,42,256,48],[256,49,256,55],[244,0,244,60],[200,1,200,13],[200,20,200,32],[217,0,242,60],[245,2,245,60],[246,2,246,60],[250,1,251,13],[250,14,250,55],[250,56,251,59],[251,14,251,18],[251,19,251,41],[251,42,251,48],[251,49,251,55],[252,1,252,13],[252,14,252,18],[252,19,252,41],[252,42,252,48],[252,49,252,55],[201,20,201,32],[208,31,208,56],[208,2,208,27],[201,1,201,13],[253,1,253,13],[253,14,253,18],[253,19,253,41],[253,42,253,48],[253,49,253,55],[254,1,254,13],[255,1,255,13],[256,1,256,13],[195,1,195,37],[196,1,196,19],[196,22,196,39],[196,42,196,58],[197,1,197,19],[197,22,197,39],[197,42,197,58],[161,28,161,35],[162,28,163,35],[199,1,199,6],[199,8,199,34],[199,36,199,39],[210,2,210,56],[211,2,211,56],[213,2,213,27],[213,31,213,56],[214,2,214,27],[214,31,214,56],[203,1,203,23],[200,38,200,50],[201,38,201,50],[205,0,205,60],[207,2,207,27],[207,31,207,56],[172,24,172,49],[176,4,176,15],[176,18,176,20],[176,21,176,26],[176,28,176,35],[154,0,154,60],[155,1,155,32],[145,1,145,58],[146,1,146,58],[148,3,149,13],[148,14,149,24],[148,25,149,35],[148,36,149,46],[148,47,148,57],[149,47,149,57],[161,37,161,48],[162,37,163,48],[161,51,161,58],[162,51,163,58],[157,3,157,10],[158,3,158,16],[157,24,157,49],[161,4,161,15],[162,4,162,6],[162,7,162,9],[162,10,162,15],[163,4,163,6],[163,7,163,9],[163,10,163,15],[161,18,161,20],[161,21,161,26],[162,21,163,26],[162,18,163,20],[158,24,158,49],[142,36,142,58],[143,36,143,58],[143,1,143,9],[151,4,151,13],[151,16,151,23],[151,26,151,34],[150,47,152,57],[151,36,151,46],[130,2,130,3],[130,4,130,5],[130,6,130,7],[130,8,130,9],[130,13,130,14],[130,15,130,16],[130,17,130,18],[130,23,130,24],[130,25,130,26],[130,27,130,28],[130,33,130,34],[130,35,130,36],[130,37,130,38],[130,43,130,44],[130,45,130,46],[141,41,141,43],[141,45,141,47],[141,49,141,51],[141,53,141,55],[132,48,132,55],[130,21,130,22],[143,11,143,19],[143,21,143,29],[138,1,138,19],[103,52,103,56],[105,1,105,22],[116,1,116,18],[105,41,105,48],[105,51,105,58],[104,33,104,43],[108,2,110,28],[110,40,110,59],[110,30,110,38],[106,38,106,57],[113,2,115,28],[113,40,113,59],[124,2,124,14],[124,19,124,39],[124,43,124,58],[119,0,119,60],[123,43,123,58],[120,0,120,60],[121,1,121,18],[122,1,123,15],[122,19,122,39],[123,19,123,39],[122,43,122,58],[111,2,111,12],[111,13,111,23],[111,24,111,28],[108,40,108,59],[130,11,130,12],[130,31,130,32],[130,41,130,42],[96,1,96,22],[100,6,100,16],[90,27,90,37],[90,39,90,48],[90,50,90,58],[90,15,90,25],[100,28,100,30],[72,1,76,13],[66,39,66,48],[58,15,58,25],[58,27,58,37],[58,39,58,48],[58,50,58,58],[74,15,74,25],[74,27,74,37],[74,39,74,48],[74,50,74,58],[66,50,66,58],[64,1,68,13],[56,1,60,13],[66,15,66,25],[66,27,66,37],[82,15,82,25],[82,27,82,37],[82,39,82,48],[82,50,82,58],[18,0,18,7],[15,30,15,34],[16,30,16,34],[17,30,17,34],[14,6,14,8],[15,6,15,8],[16,6,16,8],[14,9,14,11],[14,12,14,14],[15,12,15,14],[14,27,14,28],[15,27,15,28],[14,24,14,26],[15,24,15,26],[16,12,16,14],[0,6,0,60],[1,6,1,60],[7,0,7,34],[8,0,8,34],[10,7,10,34],[6,36,6,60],[3,42,3,60],[12,0,12,5],[12,7,13,7],[12,9,13,9],[12,10,13,10],[12,12,13,12],[5,0,6,34],[5,36,5,60],[13,0,13,5],[12,21,13,21],[15,9,15,11],[18,9,18,20],[10,36,10,60],[11,36,12,60],[15,20,15,23],[16,20,16,23],[17,20,17,23],[14,15,14,18],[15,15,15,18],[12,13,13,13],[12,15,13,15],[12,16,13,16],[12,17,13,17],[12,18,13,18],[12,20,13,20],[12,30,13,30],[12,31,13,31],[12,32,13,32],[12,33,13,33],[12,34,13,34],[14,30,14,34],[14,20,14,23],[12,22,13,22],[12,23,13,23],[12,25,13,25],[12,27,13,27],[12,28,13,28],[38,1,38,22],[25,1,25,7],[29,1,29,15],[22,0,22,16],[23,0,23,60],[25,10,25,60],[26,10,26,60],[19,0,19,21],[20,0,20,7],[21,0,21,21],[31,1,31,16],[54,50,54,58],[52,27,52,40],[52,41,52,59],[50,2,50,19],[51,0,51,15],[52,0,52,12],[52,13,52,25],[54,1,54,13],[54,15,54,25],[54,27,54,37],[54,39,54,48],[30,1,30,59],[32,1,37,59],[39,1,48,59],[27,10,27,58],[491,35,491,41],[491,42,491,49],[491,50,491,54],[491,55,491,60],[486,30,486,34],[492,30,492,34],[492,42,492,49],[492,50,492,54],[492,55,492,60],[486,35,486,41],[486,42,486,49],[486,50,486,54],[482,55,482,60],[489,55,489,60],[489,42,489,49],[489,50,489,54],[499,55,499,60],[496,50,496,54],[496,55,496,60],[494,50,494,54],[494,55,494,60],[501,0,501,29],[501,30,501,34],[501,35,501,41],[501,50,501,54],[501,55,501,60],[498,0,498,29],[498,30,498,34],[498,35,498,41],[498,42,498,49],[498,50,498,54],[498,55,498,60],[497,0,497,29],[497,30,497,34],[497,35,497,41],[497,42,497,49],[497,50,497,54],[497,55,497,60],[499,0,499,29],[500,55,500,60],[499,50,499,54],[500,50,500,54],[493,0,493,29],[495,30,495,34],[495,35,495,41],[518,50,518,54],[519,35,519,41],[519,42,519,49],[490,30,490,34],[490,35,490,41],[490,42,490,49],[493,30,493,34],[493,35,493,41],[499,30,499,34],[499,35,499,41],[499,42,499,49],[500,30,500,34],[500,35,500,41],[508,30,508,34],[508,35,508,41],[508,42,508,49],[496,30,496,34],[496,35,496,41],[496,42,496,49],[494,30,494,34],[494,35,494,41],[518,30,518,34],[518,35,518,41],[500,42,501,49],[504,35,504,41],[504,42,504,49],[510,30,510,34],[510,35,510,41]],"merged_total":1570,"flags":["merged_cut"]}
[]
[]
[null,null,null,null,null,null,null,null,null,null,null,null,null,null,null,null,null,null,null,null,null,null,null,null,null,null,null,null,null,null,null,null,null,null,null,null,null,null,null,null,null,null,"Vers. 02 -  2018"]
[null,null,null,null,null,null,null,null,null,null,null,null,null,null,null,null,null,null,null,null,null,null,null,null,null,null,null,null,null,null,null,null,null,null,null,null,null,null,null,null,null,null,"SECŢIUNE GENERALĂ"]
[]
["DATE DE ÎNREGISTRARE",null,null,null,null,null,null,null,null,null,null,null,null,null,null,null,null,null,null,null,null,null,null,null,null,null,null,null,null,null,null,null,null,null,null,null,"NUME ŞI PRENUME DIRECTOR GENERAL"]
[null,null,null,null,null,null,null,null,null,null,null,null,null,null,null,null,null,null,null,null,null,null,null,null,null,null,null,null,null,null,null,null,null,null,null,null,"ADJUNCT CRFIR"]
["Se completează de către Agenția pentru Finanțarea Investițiilor Rurale -Centrul"]
["Regional- Programul FEADR 2014-2020"]
[]
["OJFIR/CRFIR",null,null,null,null,null,null,null,null,null,null,null,null,null,null,null,null,null,null,null,null,null,null,null,null,null,null,null,null,null,null,null,null,null,null,null,"Semnătura Director General Adjunct CRFIR"]
[null,null,null,null,null,null,null,null,null,null,null,null,null,null,null,null,null,null,null,null,null,null,null,null,null,null,null,null,null,null,null,null,null,null,null,null,"Ştampila CRFIR"]
["Număr "]
["înregistrare"]
[]
[]
[]
[]
["Data Înregistrării"]
["Numele şi prenumele persoanei care înregistrează"]
["Semnătura:"]
["Data primirii cererii de finanţare la contractare:"]
["Se completează de către solicitant"]
["A PREZENTARE GENERALĂ"]
[]
[null,"A1 Măsura",null,null,null,null,null,null,null,null,"Sub-măsura 19.2 -sprijin pentru implementarea acțiunilor în cadrul strategiei de dezvoltare loclă"]
[null,null,null,null,null,null,null,null,null,null," M05 Diversificarea activităților non-agricole în mediul rural"]
[null,null,null,null,null,null,null,null,null,null,"Domeniul de intervenție 6A-Facilitarea diversicării , a înființării și a dezvoltării dr intreprinderi mici, precum și crearea de locuri de muncă"]
[null,"Conţinutul cadru al documentaţiei tehnico-economice faza SF/DALI conform : H.G. nr. 907/2016"]
[null,"A2 Denumire solicitant:"]
[]
[null,"A3 Titlu proiect:"]
[]
[]
[]
[]
[]
[]
[null,"A4 Descrierea succintă a proiectului:"]
[]
[]
[]
[]
[]
[]
[]
[]
[]
[]
[]
[null,null,"A5 Amplasarea proiectului:"]
[]
["Regiunea de dezvoltare:",null,null,null,null,null,null,null,null,null,null,null,null,"NORD EST",null,null,null,null,null,null,null,null,null,null,null,null,null,"Judeţ:",null,null,null,null,null,null,null,null,null,null,null,null,null,"IAȘI"]
[]
[null,"Obiectivele investiţiei",null,null,null,null,null,null,null,null,null,null,null,null,null,"Judeţ",null,null,null,null,null,null,null,null,null,null,null,"Comună/Oraş",null,null,null,null,null,null,null,null,null,null,null,"Sat/Sector",null,null,null,null,null,null,null,null,null,null,"Sat/Sector"]
[]
[]
[]
[]
[]
[]
[]
[]
[]
[]
[]
[]
[]
[]
[]
[]
[]
[]
[]
[]
[]
[]
[]
[]
[]
[]
[]
[]
[]
[]
[]
[]
[]
[]
[]
[]
[]
[]
[]
[]
[]
[null,"A6 Date despre tipul de proiect şi beneficiar:"]
[]
[null,"A6.0  Tip zona",null,null,null,null,null,null,null,null,null,"Restul teritoriului"]
[]
[null,"A6.1",null,null,null,null,"Proiect cu construcții montaj",null,null,null,null,null,null,null,null,null,null,null,null,null,null,null,null,null,null,null,null,null,"A6.3",null,null,null,null,"Beneficiar privat"]
[null,null,null,null,null,null,"Proiect fără construcții montaj"]
[]
[null,"A6.2",null,null,null,null,"Modernizare și/sau Extindere"]
[null,null,null,null,null,null,"Investiție nouă"]
[]
[]
[null,"Denumire consultant: "]
[null,null,null,null,null,null,null,null,null,null,null,null,null,null,null,null,null,null,null,null,null,null,null,null,null,null,null,null,null,null,null,"CUI"]
[]
[null,null,null,null,null,null,null,null,null,null,null,null,null,null,null,null,null,null,null,null,null,null,null,null,null,null,null,null,null,null,"Nr. Inreg. ONRC"]
[]
[null,"Denumire proiectant: "]
[null,null,null,null,null,null,null,null,null,null,null,null,null,null,null,null,null,null,null,null,null,null,null,null,null,null,null,null,null,null,null,"CUI"]
[]
[null,null,null,null,null,null,null,null,null,null,null,null,null,null,null,null,null,null,null,null,null,null,null,null,null,null,null,null,null,null,"Nr. Inreg. ONRC"]
[]
[null,null,null,null,"Proiect tehnic",null,null,null,null,null,null,null,null,null,null,null,"Autorizație",null,null,null,null,null,null,null,null,"Studiu de impact"]
[]
["B INFORMAŢII PRIVIND SOLICITANTUL"]
["B1 Descrierea solicitantului"]
[null,"B1.1 Informaţii privind solicitantul"]
[null,"Data înființării",null,null,null,null,null,null,null,null,null,null,null,null,null,null,null,null,null,"Cod Unic de Înregistrare și/sau Codul de",null,null,null,null,null,null,null,null,null,null,null,null,null,null,null,null,null,null,null,null,null,null,null,"Statut juridic al solicitantului"]
[null,null,null,null,null,null,null,null,null,null,null,null,null,null,null,null,null,null,null,"Înregistrare Fiscală"]
[]
[]
[null,"Număr de înregistrare în registrul comerțului"]
[]
[null,"Codul CAEN al activităţii/activităţilor finanţate prin proiect"]
[]
[]
[]
[null,"Codul unic de înregistrare APIA",null,null,null,null,null,null,null,null,null,null,null,null,null,null,null,null,null,null,null,null,null,null,null,null,null,null,null,null,null,null,null,null,null,null,"Anul atribuirii codului"]
[]
[null,"Codul Registru Național al Exploatațiilor ANSVSA",null,null,null,null,null,null,null,null,null,null,null,null,null,null,null,null,null,null,null,null,null,null,null,null,null,null,null,null,null,null,null,null,null,null,"Anul atribuirii codului"]
[]
[]
[null,"B1.2 Sediul social / Domiciliul stabil al solicitantului / Reşedinţa din România"]
[null,"Judeţ",null,null,null,null,null,null,null,null,null,null,null,null,null,null,null,null,null,null,null,null,"Localitate",null,null,null,null,null,null,null,null,null,null,null,null,null,null,null,null,null,null,null,"Sat"]
[]
[null,"Cod Poştal",null,null,null,null,null,null,"Strada",null,null,null,null,null,null,null,null,null,null,null,null,null,null,null,null,null,null,null,null,null,null,null,null,null,null,null,null,"Nr.",null,null,null,"Bloc",null,null,null,"Scara",null,null,null,"Etaj",null,null,null,"Apartament"]
[]
[null,"Telefon fix",null,null,null,null,null,null,null,null,null,"Telefon mobil",null,null,null,null,null,null,null,null,null,"Fax",null,null,null,null,null,null,null,null,null,null,null,null,null,null,"E-mail"]
[]
[]
[null,"B1.3 Numele şi prenumele reprezentantului legal şi funcţia acestuia în cadrul organizaţiei, precum şi"]
[null,"specimenul de semnatură:"]
[]
[null,null,null,"Numele",null,null,null,null,null,null,null,null,null,null,"Prenumele",null,null,null,null,null,null,null,null,null,null,"Funcţia",null,null,null,null,null,null,null,null,null,null,"Reprezentant legal",null,null,null,null,null,null,null,null,null,null,"Specimen de"]
[null,null,null,null,null,null,null,null,null,null,null,null,null,null,null,null,null,null,null,null,null,null,null,null,null,null,null,null,null,null,null,null,null,null,null,null,null,null,null,null,null,null,null,null,null,null,null,"semnătură"]
[]
[null,null,null,null,null,null,null,null,null,null,null,null,null,null,null,null,null,null,null,null,null,null,null,null,null,null,null,null,null,null,null,null,null,null,null,null,"LEGAL"]
[]
[]
["B2 Informaţii referitoare la reprezentantul legal de proiect"]
[null,"B2.1 Date de identitate ale reprezentantului legal de proiect"]
[]
[null,null,null,"Data naşterii",null,null,null,null,null,null,null,null,null,null,null,null,null,null,null,null,null,null,null,null,"Cod numeric personal"]
[null,null,null,"1986-08-15"]
[]
[]
[null,null,null,null,"Act de identitate",null,null,null,null,null,null,null,null,null,null,null,null,null,"Seria",null,null,"Nr.",null,null,null,null,null,null,"Eliberat la data de",null,null,null,null,null,null,null,null,"de:",null,null,null,null,null,null,null,null,null,null,null,null,null,"Valabil până la:"]
[null,null,null,null,"B.I.",null,null,"C.I.",null,null,"Paşaport"]
[]
[]
[null,null,null,null,"Asociat unic",null,null,null,null,null,null,null,null,null,null,null,"Asociat majoritar",null,null,null,null,null,null,null,null,null,null,"Administrator"]
[]
[null,"Asociați"]
[null,null,null,null,null,"Persoană Fizică: "]
[null,null,null,"Nume și prenume asociat : "]
[]
[null,null,null,"Data naşterii",null,null,null,null,null,null,null,null,null,null,null,null,null,null,null,null,null,null,null,null,"Cod numeric personal"]
[]
[]
[]
[]
[null,null,null,null,"Act de identitate",null,null,null,null,null,null,null,null,null,null,null,null,null,"Seria",null,null,"Nr.",null,null,null,null,null,null,"Eliberat la data de",null,null,null,null,null,null,null,null,"de:",null,null,null,null,null,null,null,null,null,null,null,null,null,"Valabil până la:"]
[null,null,null,null,"B.I.",null,null,"C.I.",null,null,"Paşaport"]
[]
[]
[null,null,"Adresa și domiciliul asociatului:"]
[null,null,null,"Judeţ",null,null,null,null,null,null,null,null,null,null,null,null,null,null,null,null,null,null,null,null,null,"Localitate",null,null,null,null,null,null,null,null,null,null,null,null,null,null,null,null,null,null,"Sat"]
[]
[null,null,null,"Cod Poştal",null,null,null,null,null,null,null,null,null,"Strada",null,null,null,null,null,null,null,null,null,null,null,null,null,null,null,null,null,"Nr.",null,null,null,null,"Bloc",null,null,null,null,"Scara",null,null,null,null,"Etaj",null,null,null,null,null,"Apartament"]
[]
[null,null,null,null,null,"Persoană Juridică: "]
[]
[null,null,null,null,null,null,null,"Înregistrată în România"]
[null,null,null,null,null,null,null,"Înregistrată în altă țară"]
[]
[null,null,null,"Denumire : "]
[]
[null,null,null,null,"CUI",null,null,null,null,null,null,null,null,null,null,null,null,null,null,"Nr. Inreg. ONRC"]
[]
[]
[null,"B2.2 Domiciliul stabil al reprezentantului legal de proiect"]
[null,"Judeţ",null,null,null,null,null,null,null,null,null,null,null,null,null,null,null,null,null,null,null,null,"Localitate",null,null,null,null,null,null,null,null,null,null,null,null,null,null,null,null,null,null,null,"Sat"]
[]
[null,"Cod Poştal",null,null,null,null,null,null,"Strada",null,null,null,null,null,null,null,null,null,null,null,null,null,null,null,null,null,null,null,null,null,null,null,null,null,null,null,null,"Nr.",null,null,null,"Bloc",null,null,null,"Scara",null,null,null,"Etaj",null,null,null,"Apartament"]
[]
[null,"Telefon fix",null,null,null,null,null,null,null,null,null,null,null,null,null,null,null,null,null,null,"Telefon mobil",null,null,null,null,null,null,null,null,null,null,null,null,null,null,null,null,null,"Fax"]
[]
[null,"E-mail"]
[]
[]
["B3 Informaţii privind contul bancar pentru proiect schema de autor de stat"]
[]
[null,null,"B3.1 Denumirea Băncii",null,null,null,null,null,null,null,null,null,null,null,null,null,null,null,null,null,null,null,null,null,null,null,null,null,null,null,null,"Denumirea Sucursalei/Filialei"]
[]
[]
[null,null,"B3.2 Adresa Băncii/Sucursalei"]
[]
[]
[null,null,"B3.3 Cod IBAN",null,null,null,null,null,null,null,null,null,null,null,null,null,null,null,null,null,null,null,null,null,null,null,null,null,null,null,null,"B3.4 Titularul contului bancar"]
[]
[]
[]
["REGULI DE COMPLETARE\n\nCompletaţi devizele aferente capitolelor de cheltuieli, defalcat pe cheltuieli eligibile şi neeligibile prin completarea tabelelor incluse în acest document, respectiv :\n1. Tabelul \"Deviz financiar_cap3\" cuprinde cheltuielile aferente capitolului 3 - Cheltuieli pentru proiectare şi asistenţă tehnică, cheltuieli care trebuie să se regăsească atât în Bugetul Indicativ (Tabel \"Buget indicativ\" din cererea de finanţare, partea specifică) cât şi în Devizul General din Studiul de Fezabilitate.\n2. Tabelul \"Devize obiect\" cuprinde formatul cadru al devizului pe obiect, iar solicitantul va completa atâtea devize pe obiect câte obiecte de investiţie sunt incluse în proiect. Suma tuturor devizelor pe obiect trebuie să se regăsească atât în Bugetul Indicativ (tabelul \"Buget indicativ\" din cererea de finanţare, partea specifică) cât şi în Devizul General din Studiul de Fezabilitate.\nÎn cazul în care proiectul de investiţii presupune mai multe devize pe obiect, solicitantul va crea în documentul curent câte o copie a tabelului \"Devize obiect\" pentru fiecare deviz pe obiect şi va detalia cheltuielile eligibile şi neeligibile pe fiecare în parte.\n3. Tabelul \"cap.2+cap.5\" cuprinde cheltuieli aferente capitolelor 2 şi 5 şi trebuie să se regăsească atât în Bugetul Indicativ (tabel \"Buget indicativ\" din cererea de finanţare, partea specifică) cât şi Devizul General din Studiul de Fezabilitate.\n4. Câmpul \"Prescorare\" de la secţiunea A6 se autocompletează cu totalul din Grila criterii de selecție.\n5. Pentru indicatorii de tip numeric care nu fac obiectul investitiei sa va completa valoarea zero.\n6. Trebuie bifate si anexate toate documente (1.a, 5, 10, 11 si 18) de pe coloana “DEPUNERE - Obligatoriu pentru toate proiectele” din sectiunea E – Lista documentelor anexate.\n"]
[]
[]
[]
[]
[]
[]
[]
[]
[]
[]
[]
[]
[]
[]
[]
[]
[]
[]
[]
[]
[]
[]
[]
[]
[]
[]
["C FINANȚĂRI NERAMBURSABILE OBȚINUTE, SAU SOLICITATE ?"]
[null,null,"Dacă au fost obținute finanțări nerambursabile sau au fost solicitate și au fost obținute parțial, se vor detalia prin completarea"]
[null,null,"tabelului de mai jos."]
[]
[null,null,null,null,null,null,null,null,null,null,"DA",null,null,null,null,null,null,null,"NU"]
[]
[null,"DENUMIRE PROGRAM FINANȚARE",null,null,null,null,null,null,null,null,null,null,null,null,"DA",null,null,null,null,null,null,null,null,null,null,null,null,null,null,null,null,null,null,null,null,null,null,null,null,null,null,null,null,null,null,null,null,null,null,null,null,null,null,null,null,null,"NU"]
[null,null,null,null,null,null,null,null,null,null,null,null,null,null,"Număr proiecte",null,null,null,null,"Titlul Proiectui și numărul contractului de finanțare ",null,null,null,null,null,null,null,null,null,null,null,null,null,null,null,null,null,null,null,null,null,null,"Data finalizării\nll/zz/aaaa",null,null,null,null,null,null,"Valoarea\nsprijinului\n(EUR)"]
[null,"Program Naţional*"]
[null,"Program Naţional*"]
[null,"FEADR *"]
[null,"SAPARD"]
[null,"Alte programe europene*"]
[null,"Alte programe europene*"]
[null,"Alte programe internaționale*"]
[null,"Alte programe internaționale*"]
[null,"Alte programe internaționale*"]
[null,null,null,null,"* se completează de către solicitant cu denumirea programului"]
[]
[null,"Buget Indicativ - HG 907/2016"]
["MINISTERUL AGRICULTURII ŞI DEZVOLTĂRII RURALE"]
["AGENŢIA PENTRU FINANŢAREA INVESTIŢIILOR RURALE"]
[]
[]
[null,"Procentul aferent intensității",null,null,null,null,null,null,null,null,null,null,null,null,null,null,null,null,null,null,"Curs EURO",null,null,null,null,null,null,null,null,null,null,null,null,"Data întocmirii Studiului de Fezabilitate"]
[]
["Măsura",null,null,null,null,null,null,null,null,null,null,null,null,null,null,null,null,null,null,null,null,null,null,null,null,null,null,null,null,null,null,null,null,null,null,"6.4"]
["Denumirea capitolelor de cheltuieli",null,null,null,null,null,null,null,null,null,null,null,null,null,null,null,null,null,null,null,null,null,null,null,null,null,null,null,null,null,null,null,null,null,null,"Cheltuieli eligibile",null,null,null,null,null,null,null,null,"Cheltuieli neeligibile",null,null,null,null,null,null,null,"Total"]
[null,null,null,null,null,null,null,null,null,null,null,null,null,null,null,null,null,null,null,null,null,null,null,null,null,null,null,null,null,null,null,null,null,null,null,"EURO",null,null,null,null,null,null,null,null,"EURO",null,null,null,null,null,null,null,"EURO"]
[1,null,null,null,null,null,null,null,null,null,null,null,null,null,null,null,null,null,null,null,null,null,null,null,null,null,null,null,null,null,null,null,null,null,null,2,null,null,null,null,null,null,null,null,3,null,null,null,null,null,null,null,4]
["Capitolul 1 Cheltuieli pentru obtinerea şi amenajarea terenului - total, din care:",null,null,null,null,null,null,null,null,null,null,null,null,null,null,null,null,null,null,null,null,null,null,null,null,null,null,null,null,null,null,null,null,null,null,{"$f":"SUM(AJ277:AR279)","v":0},null,null,null,null,null,null,null,null,{"$f":"SUM(AS276:AZ279)","v":0},null,null,null,null,null,null,null,{"$f":"SUM(AJ275:AZ275)","v":0}]
["1.1 Obţinerea terenului",null,null,null,null,null,null,null,null,null,null,null,null,null,null,null,null,null,null,null,null,null,null,null,null,null,null,null,null,null,null,null,null,null,null,null,null,null,null,null,null,null,null,null,null,null,null,null,null,null,null,null,{"$f":"SUM(AJ276:AZ276)","v":0}]
["1.2 Amenajarea terenului",null,null,null,null,null,null,null,null,null,null,null,null,null,null,null,null,null,null,null,null,null,null,null,null,null,null,null,null,null,null,null,null,null,null,null,null,null,null,null,null,null,null,null,null,null,null,null,null,null,null,null,0]
["1.3 Amenajari pentru protecţia mediului şi aducerea la starea iniţială",null,null,null,null,null,null,null,null,null,null,null,null,null,null,null,null,null,null,null,null,null,null,null,null,null,null,null,null,null,null,null,null,null,null,null,null,null,null,null,null,null,null,null,null,null,null,null,null,null,null,null,0]
["1.4 Cheltuieli pentru relocarea/protecția utilităților",null,null,null,null,null,null,null,null,null,null,null,null,null,null,null,null,null,null,null,null,null,null,null,null,null,null,null,null,null,null,null,null,null,null,null,null,null,null,null,null,null,null,null,null,null,null,null,null,null,null,null,{"$f":"SUM(AJ279:AZ279)","v":0}]
["Capitolul 2 Cheltuieli pentru asigurarea utilităţilor necesare obiectivului de investiții",null,null,null,null,null,null,null,null,null,null,null,null,null,null,null,null,null,null,null,null,null,null,null,null,null,null,null,null,null,null,null,null,null,null,null,null,null,null,null,null,null,null,null,null,null,null,null,null,null,null,null,0]
["Capitolul 3 Cheltuieli pentru proiectare şi asistenţă tehnică - total, din care:",null,null,null,null,null,null,null,null,null,null,null,null,null,null,null,null,null,null,null,null,null,null,null,null,null,null,null,null,null,null,null,null,null,null,{"$f":"AJ282+AJ286+AJ287+AJ288+AJ289+AJ297+AJ300","v":0},null,null,null,null,null,null,null,null,{"$f":"AS282+AS286+AS287+AS288+AS289+AS296+AS297+AS300","v":0},null,null,null,null,null,null,null,0]
["3.1 Studii",null,null,null,null,null,null,null,null,null,null,null,null,null,null,null,null,null,null,null,null,null,null,null,null,null,null,null,null,null,null,null,null,null,null,{"$f":"SUM(AJ283:AJ285)","v":0},null,null,null,null,null,null,null,null,{"$f":"SUM(AS283:AS285)","v":0},null,null,null,null,null,null,null,{"$f":"SUM(AJ282:AZ282)","v":0}]
["      3.1.1. Studii de teren",null,null,null,null,null,null,null,null,null,null,null,null,null,null,null,null,null,null,null,null,null,null,null,null,null,null,null,null,null,null,null,null,null,null,null,null,null,null,null,null,null,null,null,null,null,null,null,null,null,null,null,0]
["      3.1.2. Raport privind impactul asupra mediului",null,null,null,null,null,null,null,null,null,null,null,null,null,null,null,null,null,null,null,null,null,null,null,null,null,null,null,null,null,null,null,null,null,null,null,null,null,null,null,null,null,null,null,null,null,null,null,null,null,null,null,0]
["      3.1.3. Alte studii specifice",null,null,null,null,null,null,null,null,null,null,null,null,null,null,null,null,null,null,null,null,null,null,null,null,null,null,null,null,null,null,null,null,null,null,null,null,null,null,null,null,null,null,null,null,null,null,null,null,null,null,null,{"$f":"SUM(AJ285:AZ285)","v":0}]
["3.2 Documentații-suport și cheltuieli pentru obţinerea de avize, acorduri şi autorizaţii",null,null,null,null,null,null,null,null,null,null,null,null,null,null,null,null,null,null,null,null,null,null,null,null,null,null,null,null,null,null,null,null,null,null,null,null,null,null,null,null,null,null,null,null,null,null,null,null,null,null,null,0]
["3.3 Expertizare tehnică",null,null,null,null,null,null,null,null,null,null,null,null,null,null,null,null,null,null,null,null,null,null,null,null,null,null,null,null,null,null,null,null,null,null,null,null,null,null,null,null,null,null,null,null,null,null,null,null,null,null,null,0]
["3.4 Certificarea performanţei energetice şi auditul energetic al clădirilor",null,null,null,null,null,null,null,null,null,null,null,null,null,null,null,null,null,null,null,null,null,null,null,null,null,null,null,null,null,null,null,null,null,null,null,null,null,null,null,null,null,null,null,null,null,null,null,null,null,null,null,{"$f":"SUM(AJ288:AZ288)","v":0}]
["3.5 Proiectare",null,null,null,null,null,null,null,null,null,null,null,null,null,null,null,null,null,null,null,null,null,null,null,null,null,null,null,null,null,null,null,null,null,null,{"$f":"SUM(AJ290:AR295)","v":0},null,null,null,null,null,null,null,null,{"$f":"SUM(AS290:AZ295)","v":0},null,null,null,null,null,null,null,0]
["      3.5.1. Temă de proiectare",null,null,null,null,null,null,null,null,null,null,null,null,null,null,null,null,null,null,null,null,null,null,null,null,null,null,null,null,null,null,null,null,null,null,null,null,null,null,null,null,null,null,null,null,null,null,null,null,null,null,null,{"$f":"SUM(AJ290:AZ290)","v":0}]
["      3.5.2. Studiu de prefezabilitate",null,null,null,null,null,null,null,null,null,null,null,null,null,null,null,null,null,null,null,null,null,null,null,null,null,null,null,null,null,null,null,null,null,null,null,null,null,null,null,null,null,null,null,null,null,null,null,null,null,null,null,0]
["      3.5.3. Studiu de prefezabilitate/documentație de avizare a lucrărilor de intervenții și deviz general",null,null,null,null,null,null,null,null,null,null,null,null,null,null,null,null,null,null,null,null,null,null,null,null,null,null,null,null,null,null,null,null,null,null,null,null,null,null,null,null,null,null,null,null,null,null,null,null,null,null,null,0]
["      3.5.4. Documentațiile tehnice necesare în vederea obținerii avizelor/ acordurilor/ autorizațiilor",null,null,null,null,null,null,null,null,null,null,null,null,null,null,null,null,null,null,null,null,null,null,null,null,null,null,null,null,null,null,null,null,null,null,null,null,null,null,null,null,null,null,null,null,null,null,null,null,null,null,null,0]
["      3.5.5. Verificarea tehnică de calitate a proiectului tehnic și a detaliilor de execuție",null,null,null,null,null,null,null,null,null,null,null,null,null,null,null,null,null,null,null,null,null,null,null,null,null,null,null,null,null,null,null,null,null,null,null,null,null,null,null,null,null,null,null,null,null,null,null,null,null,null,null,0]
["      3.5.6. Proiect tehnic și detalii de execuție",null,null,null,null,null,null,null,null,null,null,null,null,null,null,null,null,null,null,null,null,null,null,null,null,null,null,null,null,null,null,null,null,null,null,null,null,null,null,null,null,null,null,null,null,null,null,null,null,null,null,null,0]
["3.6 Organizarea procedurilor de achiziţie",null,null,null,null,null,null,null,null,null,null,null,null,null,null,null,null,null,null,null,null,null,null,null,null,null,null,null,null,null,null,null,null,null,null,null,null,null,null,null,null,null,null,null,null,null,null,null,null,null,null,null,0]
["3.7 Consultanță",null,null,null,null,null,null,null,null,null,null,null,null,null,null,null,null,null,null,null,null,null,null,null,null,null,null,null,null,null,null,null,null,null,null,{"$f":"SUM(AJ298:AR299)","v":0},null,null,null,null,null,null,null,null,{"$f":"SUM(AS298:AZ299)","v":0},null,null,null,null,null,null,null,0]
["      3.7.1. Managementul de proiect pentru obiectivul de investiții",null,null,null,null,null,null,null,null,null,null,null,null,null,null,null,null,null,null,null,null,null,null,null,null,null,null,null,null,null,null,null,null,null,null,null,null,null,null,null,null,null,null,null,null,null,null,null,null,null,null,null,0]
["      3.7.2. Auditul financiar",null,null,null,null,null,null,null,null,null,null,null,null,null,null,null,null,null,null,null,null,null,null,null,null,null,null,null,null,null,null,null,null,null,null,null,null,null,null,null,null,null,null,null,null,null,null,null,null,null,null,null,{"$f":"SUM(AJ299:AZ299)","v":0}]
["3.8 Asistență tehnică",null,null,null,null,null,null,null,null,null,null,null,null,null,null,null,null,null,null,null,null,null,null,null,null,null,null,null,null,null,null,null,null,null,null,{"$f":"AJ304+AJ301","v":0},null,null,null,null,null,null,null,null,{"$f":"AS304+AS301","v":0},null,null,null,null,null,null,null,0]
["     3.8.1. Asistență tehnică din partea proiectantului",null,null,null,null,null,null,null,null,null,null,null,null,null,null,null,null,null,null,null,null,null,null,null,null,null,null,null,null,null,null,null,null,null,null,{"$f":"SUM(AJ302:AR303)","v":0},null,null,null,null,null,null,null,null,{"$f":"SUM(AS302:AZ303)","v":0},null,null,null,null,null,null,null,{"$f":"SUM(AJ301:AZ301)","v":0}]
["             3.8.1.1. pe perioada de execuție a lucrărilor",null,null,null,null,null,null,null,null,null,null,null,null,null,null,null,null,null,null,null,null,null,null,null,null,null,null,null,null,null,null,null,null,null,null,null,null,null,null,null,null,null,null,null,null,null,null,null,null,null,null,null,0]
["             3.8.1.2. pentru participarea proiectantului la fazele incluse în programul de control al lucrărilor de execuţie, avizat de către Inspectoratul de Stat în Construcţii",null,null,null,null,null,null,null,null,null,null,null,null,null,null,null,null,null,null,null,null,null,null,null,null,null,null,null,null,null,null,null,null,null,null,null,null,null,null,null,null,null,null,null,null,null,null,null,null,null,null,null,0]
["      3.8.2. Dirigenție de șantier",null,null,null,null,null,null,null,null,null,null,null,null,null,null,null,null,null,null,null,null,null,null,null,null,null,null,null,null,null,null,null,null,null,null,null,null,null,null,null,null,null,null,null,null,null,null,null,null,null,null,null,0]
["Verificare încadrare cheltuieli capitolul 3",null,null,null,null,null,null,null,null,null,null,null,null,null,null,null,null,null,null,null,null,null,null,null,null,null,null,null,null,null,null,null,null,null,null,{"$f":"IF(AJ306=0,IF((IF((AJ275+AJ280+AJ306)=0,0,AJ281*100/(AJ275+AJ280+AJ306)))<=5,\"cheltuieli capitol 3 se incadreaza in limita de 5%\",\"cheltuieli capitol 3 nu se incadreaza in limita de 5%\"),IF((IF((AJ275+AJ280+AJ306)=0,0,AJ281*100/(AJ275+AJ280+AJ306)))<=10,\"cheltuieli capitol 3 se incadreaza in limita de 10%\",\"cheltuieli capitol 3 nu se incadreaza in limita de 10%\"))","v":"cheltuieli capitol 3 se incadreaza in limita de 5%"}]
["Capitolul 4 Cheltuieli pentru investiţia de bază - total, din care:",null,null,null,null,null,null,null,null,null,null,null,null,null,null,null,null,null,null,null,null,null,null,null,null,null,null,null,null,null,null,null,null,null,null,{"$f":"AJ307","v":0},null,null,null,null,null,null,null,null,{"$f":"AS307","v":0},null,null,null,null,null,null,null,{"$f":"SUM(AJ306:AZ306)","v":0}]
["Constructii, din care:",null,null,null,null,null,null,null,null,null,null,null,null,null,null,null,null,null,null,null,null,null,null,null,null,null,null,null,null,null,null,null,null,null,null,{"$f":"SUM(AJ308:AJ313)","v":0},null,null,null,null,null,null,null,null,{"$f":"SUM(AS308:AS313)","v":0},null,null,null,null,null,null,null,0]
["4.1 Construcţii şi instalaţii",null,null,null,null,null,null,null,null,null,null,null,null,null,null,null,null,null,null,null,null,null,null,null,null,null,null,null,null,null,null,null,null,null,null,null,null,null,null,null,null,null,null,null,null,null,null,null,null,null,null,null,0]
["4.2 Montaj utilaj tehnologic",null,null,null,null,null,null,null,null,null,null,null,null,null,null,null,null,null,null,null,null,null,null,null,null,null,null,null,null,null,null,null,null,null,null,null,null,null,null,null,null,null,null,null,null,null,null,null,null,null,null,null,0]
["4.3 Utilaje, echipamente tehnologice şi funcţionale cu montaj (procurare)",null,null,null,null,null,null,null,null,null,null,null,null,null,null,null,null,null,null,null,null,null,null,null,null,null,null,null,null,null,null,null,null,null,null,null,null,null,null,null,null,null,null,null,null,null,null,null,null,null,null,null,0]
["4.4 Utilaje şi echipamente fară montaj, mijloace de transport, alte achiziţii specifice",null,null,null,null,null,null,null,null,null,null,null,null,null,null,null,null,null,null,null,null,null,null,null,null,null,null,null,null,null,null,null,null,null,null,null,null,null,null,null,null,null,null,null,null,null,null,null,null,null,null,null,0]
["4.5 Dotări",null,null,null,null,null,null,null,null,null,null,null,null,null,null,null,null,null,null,null,null,null,null,null,null,null,null,null,null,null,null,null,null,null,null,null,null,null,null,null,null,null,null,null,null,null,null,null,null,null,null,null,0]
["4.6 Active necorporale",null,null,null,null,null,null,null,null,null,null,null,null,null,null,null,null,null,null,null,null,null,null,null,null,null,null,null,null,null,null,null,null,null,null,null,null,null,null,null,null,null,null,null,null,null,null,null,null,null,null,null,0]
["Capitolul 5 Alte cheltuieli - total, din care:",null,null,null,null,null,null,null,null,null,null,null,null,null,null,null,null,null,null,null,null,null,null,null,null,null,null,null,null,null,null,null,null,null,null,{"$f":"AJ318+AJ315","v":0},null,null,null,null,null,null,null,null,{"$f":"AS324+AS318+AS315","v":0},null,null,null,null,null,null,null,0]
["5.1 Organizare de şantier",null,null,null,null,null,null,null,null,null,null,null,null,null,null,null,null,null,null,null,null,null,null,null,null,null,null,null,null,null,null,null,null,null,null,{"$f":"SUM(AJ316:AR317)","v":0},null,null,null,null,null,null,null,null,{"$f":"SUM(AS316:AZ317)","v":0},null,null,null,null,null,null,null,0]
["      5.1.1 lucrări de construcţii şi instalaţii aferente organizării de şantier",null,null,null,null,null,null,null,null,null,null,null,null,null,null,null,null,null,null,null,null,null,null,null,null,null,null,null,null,null,null,null,null,null,null,null,null,null,null,null,null,null,null,null,null,null,null,null,null,null,null,null,0]
["      5.1.2 cheltuieli conexe orgănizării şantierului",null,null,null,null,null,null,null,null,null,null,null,null,null,null,null,null,null,null,null,null,null,null,null,null,null,null,null,null,null,null,null,null,null,null,null,null,null,null,null,null,null,null,null,null,null,null,null,null,null,null,null,0]
["5.2 Comisioane, taxe, costul creditului",null,null,null,null,null,null,null,null,null,null,null,null,null,null,null,null,null,null,null,null,null,null,null,null,null,null,null,null,null,null,null,null,null,null,null,null,null,null,null,null,null,null,null,null,null,null,null,null,null,null,null,0]
["          5.2.1 Comisioanele și dobânzile aferente creditului băncii finanțatoare"]
["          5.2.2 Cota aferentă ISC pentru controlul caltății lucrărilor de construcții. "]
["   5.2.3. Cota aferentă ISC pentru controlul statului în amenajarea teritoriului , urbanism și pentru aprobarea lucrărilor de construcții"]
["          5.2.4. Cota aferentă Casei Sociale a Constructorilor - CSC"]
["        5.2.5. Taxe pentru acorduri, avize conforme și autorizația de construire/desființare"]
["5.3 Cheltuieli diverse şi neprevăzute",null,null,null,null,null,null,null,null,null,null,null,null,null,null,null,null,null,null,null,null,null,null,null,null,null,null,null,null,null,null,null,null,null,null,null,null,null,null,null,null,null,null,null,null,null,null,null,null,null,null,null,0]
["5.4 Cheltuieli pentru informare și publicitate."]
[]
["Capitolul 6 Cheltuieli pentru darea în exploatare - total, din care:",null,null,null,null,null,null,null,null,null,null,null,null,null,null,null,null,null,null,null,null,null,null,null,null,null,null,null,null,null,null,null,null,null,null,{"$f":"SUM(AJ328:AR329)","v":0},null,null,null,null,null,null,null,null,{"$f":"SUM(AS328:AZ329)","v":0},null,null,null,null,null,null,null,0]
["6.1 Pregătirea personalului de exploatare",null,null,null,null,null,null,null,null,null,null,null,null,null,null,null,null,null,null,null,null,null,null,null,null,null,null,null,null,null,null,null,null,null,null,null,null,null,null,null,null,null,null,null,null,null,null,null,null,null,null,null,0]
["6.2 Probe tehnologice şi teste",null,null,null,null,null,null,null,null,null,null,null,null,null,null,null,null,null,null,null,null,null,null,null,null,null,null,null,null,null,null,null,null,null,null,null,null,null,null,null,null,null,null,null,null,null,null,null,null,null,null,null,0]
["TOTAL GENERAL",null,null,null,null,null,null,null,null,null,null,null,null,null,null,null,null,null,null,null,null,null,null,null,null,null,null,null,null,null,null,null,null,null,null,{"$f":"AJ275+AJ280+AJ281+AJ306+AJ314+AJ327","v":0},null,null,null,null,null,null,null,null,{"$f":"AS275+AS280+AS281+AS306+AS314+AS327","v":0},null,null,null,null,null,null,null,0]
["Verificare actualizare",null,null,null,null,null,null,null,null,null,null,null,null,null,null,null,null,null,null,null,null,null,null,null,null,null,null,null,null,null,null,null,null,null,null,{"$f":"IF((IF(AJ330=0,0,AJ332*100/AJ330))<=5,\"actualizare mai mică de 5% din valoarea eligibila\",\"actualizare mai mare de 5% din valoarea eligibila\")","v":"actualizare mai mică de 5% din valoarea eligibila"}]
["ACTUALIZARE Cheltuieli Eligibile (max 5%)",null,null,null,null,null,null,null,null,null,null,null,null,null,null,null,null,null,null,null,null,null,null,null,null,null,null,null,null,null,null,null,null,null,null,null,null,null,null,null,null,null,null,null,null,null,null,null,null,null,null,null,{"$f":"SUM(AJ332:AZ332)","v":0}]
["TOTAL GENERAL CU ACTUALIZARE",null,null,null,null,null,null,null,null,null,null,null,null,null,null,null,null,null,null,null,null,null,null,null,null,null,null,null,null,null,null,null,null,null,null,{"$f":"AJ330+AJ332","v":0},null,null,null,null,null,null,null,null,{"$f":"AS330","v":0},null,null,null,null,null,null,null,0]
["Valoare TVA",null,null,null,null,null,null,null,null,null,null,null,null,null,null,null,null,null,null,null,null,null,null,null,null,null,null,null,null,null,null,null,null,null,null,null,null,null,null,null,null,null,null,null,null,null,null,null,null,null,null,null,0]
[null,null,null,null,null,null,null,null,null,null,null,null,null,null,null,null,null,null,null,null,null,null,null,null,null,null,null,null,null,null,null,null,null,null,null,{"$f":"SUM(AJ333:AR334)","v":0},null,null,null,null,null,null,null,null,{"$f":"SUM(AS333:AZ334)","v":0},null,null,null,null,null,null,null,0]
["TOTAL GENERAL inclusiv TVA",null,null,null,null,null,null,null,null,null,null,null,null,null,null,null,null,null,null,null,null,null,null,null,null,null,null,null,null,null,null,null,null,null,null,{"$f":"BA333+BA334","v":0}]
["VALOAREA PROIECTULUI",null,null,null,null,null,null,null,null,null,null,null,null,null,null,null,null,null,null,null,null,null,null,null,null,null,null,null,null,null,null,null,null,null,null,"LEI",null,null,null,null,null,null,null,null,"EURO"]
["VALOARE TOTALĂ",null,null,null,null,null,null,null,null,null,null,null,null,null,null,null,null,null,null,null,null,null,null,null,null,null,null,null,null,null,null,null,null,null,null,{"$f":"AS338*AA269","v":0},null,null,null,null,null,null,null,null,{"$f":"AJ336","v":0}]
["VALOARE ELIGIBILĂ",null,null,null,null,null,null,null,null,null,null,null,null,null,null,null,null,null,null,null,null,null,null,null,null,null,null,null,null,null,null,null,null,null,null,{"$f":"AS339*AA269","v":0},null,null,null,null,null,null,null,null,{"$f":"AJ333+AJ334","v":0}]
["VALOARE NEELIGIBILĂ",null,null,null,null,null,null,null,null,null,null,null,null,null,null,null,null,null,null,null,null,null,null,null,null,null,null,null,null,null,null,null,null,null,null,{"$f":"AS340*AA269","v":0},null,null,null,null,null,null,null,null,{"$f":"AS333+AS334","v":0}]
[]
["Plan Financiar",null,null,null,null,null,null,null,null,null,null,null,null,null,null,null,null,null,null,null,null,null,null,null,null,null,null,null,null,null,null,null,null,null,null,"Cheltuieli eligibile EURO",null,null,null,null,null,null,null,null,"Cheltuieli neeligibile EURO",null,null,null,null,null,null,null,"Total"]
["Ajutor public nerambursabil (contribuţie UE şi cofinanţare naţională)",null,null,null,null,null,null,null,null,null,null,null,null,null,null,null,null,null,null,null,null,null,null,null,null,null,null,null,null,null,null,null,null,null,null,null,null,null,null,null,null,null,null,null,null,null,null,null,null,null,null,null,{"$f":"SUM(AJ343:AZ343)","v":0}]
["Cofinantare privata, din care:",null,null,null,null,null,null,null,null,null,null,null,null,null,null,null,null,null,null,null,null,null,null,null,null,null,null,null,null,null,null,null,null,null,null,{"$f":"SUM(AJ345:AR346)","v":0},null,null,null,null,null,null,null,null,{"$f":"SUM(AS345:AZ346)","v":0},null,null,null,null,null,null,null,0]
[null,null,null,null,null,null,null,null,null,null,null,null,null,null,null,"- autofinantare",null,null,null,null,null,null,null,null,null,null,null,null,null,null,null,null,null,null,null,null,null,null,null,null,null,null,null,null,null,null,null,null,null,null,null,null,0]
[null,null,null,null,null,null,null,null,null,null,null,null,null,null,null,"- imprumuturi",null,null,null,null,null,null,null,null,null,null,null,null,null,null,null,null,null,null,null,null,null,null,null,null,null,null,null,null,null,null,null,null,null,null,null,null,0]
["TOTAL PROIECT",null,null,null,null,null,null,null,null,null,null,null,null,null,null,null,null,null,null,null,null,null,null,null,null,null,null,null,null,null,null,null,null,null,null,{"$f":"AJ343+AJ344","v":0},null,null,null,null,null,null,null,null,{"$f":"AS344","v":0},null,null,null,null,null,null,null,0]
["Procent contribuţie publică",null,null,null,null,null,null,null,null,null,null,null,null,null,null,null,null,null,null,null,null,null,null,null,null,null,null,null,null,null,null,null,null,null,null,{"$f":"IF(AJ347=0,0,AJ343*100/AJ347)","v":0},null,null,null,null,null,null,null,"%"]
["Avans solicitat"]
["Procent avans solicitat ca procent din ajutorul public nerambursabil",null,null,null,null,null,null,null,null,null,null,null,null,null,null,null,null,null,null,null,null,null,null,null,null,null,null,null,null,null,null,null,null,null,null,{"$f":"IF(AJ343=0,0,AJ349*100/AJ343)","v":0},null,null,null,null,null,null,null,null,{"$f":"IF(AJ350<=50,\"Suma avans mai mica de 50% din ajutorul public\",\"Suma avans mai mare de 50% din ajutorul public\")","v":"Suma avans mai mica de 50% din ajutorul public"}]
[null,null,null,null,null,null,null,"Deviz financiar- Capitolul 3 - Cheltuieli pentru proiectare şi asistenţa tehnică - EURO"]
[null,null,null,null,null,null,null,null,null,null,null,null,null,null,null,null,null,null,null,null,null,null,null,null,null,null,null,null,null,null,null,null,null,null,null,null,null,null,null,null,null,null,"Anexa A1\nHG 907/2016"]
[]
[]
[]
[]
[]
["Nr.crt",null,null,null,"Specificaţie",null,null,null,null,null,null,null,null,null,null,null,null,null,null,null,null,null,null,null,null,null,null,null,null,null,null,null,null,null,null,null,null,null,null,null,null,null,"Valoare eligibilă",null,null,null,null,null,null,null,null,"Valoare\nneeligibilă"]
["3.1",null,null,null,"Cheltuieli pentru studii - total din care:",null,null,null,null,null,null,null,null,null,null,null,null,null,null,null,null,null,null,null,null,null,null,null,null,null,null,null,null,null,null,null,null,null,null,null,null,null,{"$f":"SUM(AQ360:AY362)","v":0},null,null,null,null,null,null,null,null,{"$f":"SUM(AZ360:BI362)","v":0}]
[null,null,null,null,"3.1.1 Studii de teren: geotehnice, geologice, hidrologice, hidrogeotehnice, fotogrammetrice, topografice şi de stabilitate ale terenului pe care se amplasează obiectivul de investiţie"]
[null,null,null,null,"3.1.2 Raport privind impactul asupra mediului"]
[null,null,null,null,"3.1.3 Studii de specialitate necesare în funcție de specificul investiției"]
["3.2",null,null,null,"Documentaţii-suport şi cheltuieli pentru obţinerea de avize, acorduri şi autorizaţii",null,null,null,null,null,null,null,null,null,null,null,null,null,null,null,null,null,null,null,null,null,null,null,null,null,null,null,null,null,null,null,null,null,null,null,null,null,{"$f":"SUM(AQ364:AY372)","v":0},null,null,null,null,null,null,null,null,{"$f":"SUM(AZ364:BI372)","v":0}]
[null,null,null,null,"1. obţinerea/prelungirea valabilităţii ceritificatului de urbanism"]
[null,null,null,null,"2. obţinerea/prelungirea valabilităţii autorizaţiei de construire/desfiinţare"]
[null,null,null,null,"3. obţinerea avizelor şi acordurilor pentru racorduri şi branşamente la reţelele publice de alimentare cu apă, canalizare, alimentare cu gaze, alimentare cu agent termic, energie electrică, telefonie"]
[null,null,null,null,"4. obţinerea certificatului de nomenclatură stradală şi adresa"]
[null,null,null,null,"5. întocmirea documentaţiei, obţinerea numărului cadastral provizoriu şi înregistrarea terenului în cartea funciară"]
[null,null,null,null,"6. obținerea actului administrativ al autorității competente pentru protecția mediului"]
[null,null,null,null,"7. obţinerea avizului de protecție civilă"]
[null,null,null,null,"8. avizul de specialitate în cazul obiectivelor de patrimoniu"]
[null,null,null,null,"9. alte avize, acorduri şi autorizaţii"]
["3.3",null,null,null,"Cheltuieli pentru expertizarea tehnică a construcţiilor existente, a structurilor şi/sau, după caz, a proiectelor tehnice, inclusiv întocmirea de către expertul tehnic a raportului de expertiză tehnică"]
["3.4",null,null,null,"Cheltuieli pentru certificarea performanţei energetice şi auditul energetic al\nclădirilor"]
["3.5",null,null,null,"Cheltuieli pentru proiectare",null,null,null,null,null,null,null,null,null,null,null,null,null,null,null,null,null,null,null,null,null,null,null,null,null,null,null,null,null,null,null,null,null,null,null,null,null,{"$f":"SUM(AQ376:AY381)","v":0},null,null,null,null,null,null,null,null,{"$f":"SUM(AZ376:BI381)","v":0}]
[null,null,null,null,"3.5.1 Temă de proiectare"]
[null,null,null,null,"3.5.2 Studiu de prefezabilitate"]
[null,null,null,null,"3.5.3. Studiu de prefezabilitate/documentație de avizare a lucrărilor de intervenții și deviz general"]
[null,null,null,null,"3.5.4. Documentațiile tehnice necesare în vederea obținerii avizelor/ acordurilor/ autorizațiilor"]
[null,null,null,null,"3.5.5. Verificarea tehnică de calitate a proiectului tehnic și a detaliilor de execuție"]
[null,null,null,null,"3.5.6. Proiect tehnic și detalii de execuție"]
["3.6",null,null,null,"Cheltuieli aferente organizării şi derulării procedurilor de achiziţii publice",null,null,null,null,null,null,null,null,null,null,null,null,null,null,null,null,null,null,null,null,null,null,null,null,null,null,null,null,null,null,null,null,null,null,null,null,null,null,null,null,null,null,null,null,null,null,{"$f":"SUM(AZ383:BI386)","v":0}]
[null,null,null,null,"1. Cheltuieli aferente întocmirii documentaţiei de atribuire şi multiplicării acesteia (exclusiv cele cumpărate de ofertanţi)"]
[null,null,null,null,"2. Cheltuieli cu onorariile, transportul, cazarea şi diurna membrilor desemnaţi în comisiile de evaluare"]
[null,null,null,null,"3. Anunţuri de intenţie, de participare şi de atribuire a contractelor, corespondenţă prin poştă, fax, poştă electronică în legătură cu procedurile de achiziţie publică"]
[null,null,null,null,"4. Cheltuieli aferente organizării şi derulării procedurilor de achiziţii publice"]
["3.7",null,null,null,"Cheltuieli pentru consultanţă",null,null,null,null,null,null,null,null,null,null,null,null,null,null,null,null,null,null,null,null,null,null,null,null,null,null,null,null,null,null,null,null,null,null,null,null,null,{"$f":"SUM(AQ388:AY389)","v":0},null,null,null,null,null,null,null,null,{"$f":"SUM(AZ388:BI389)","v":0}]
[null,null,null,null,"3.7.1 Managementul de proiect pentru obiectivul de investiţii"]
[null,null,null,null,"3.7.2 Auditul financiar"]
["3.8",null,null,null,"Cheltuieli pentru asistenţa tehnică",null,null,null,null,null,null,null,null,null,null,null,null,null,null,null,null,null,null,null,null,null,null,null,null,null,null,null,null,null,null,null,null,null,null,null,null,null,{"$f":"AQ391+AQ394","v":0},null,null,null,null,null,null,null,null,{"$f":"AZ391+AZ394","v":0}]
[null,null,null,null,"3.8.1. Asistenţă tehnică din partea proiectantului",null,null,null,null,null,null,null,null,null,null,null,null,null,null,null,null,null,null,null,null,null,null,null,null,null,null,null,null,null,null,null,null,null,null,null,null,null,{"$f":"SUM(AQ392:AY393)","v":0},null,null,null,null,null,null,null,null,{"$f":"SUM(AZ392:BI393)","v":0}]
[null,null,null,null,"1.1. pe perioada de execuţie a lucrărilor"]
[null,null,null,null,"1.2. pentru participarea proiectantului la fazele incluse în programul de control al lucrărilor de execuţie, avizat de către Inspectoratul de Stat în Construcţii"]
[null,null,null,null,"3.8.2 Dirigenţie de şantier, asigurată de personal tehnic de specialitate, autorizat"]
[null,null,null,null,"Total valoare fără TVA",null,null,null,null,null,null,null,null,null,null,null,null,null,null,null,null,null,null,null,null,null,null,null,null,null,null,null,null,null,null,null,null,null,null,null,null,null,{"$f":"AQ359+AQ363+AQ373+AQ374+AQ375+AQ382+AQ387+AQ390","v":0},null,null,null,null,null,null,null,null,{"$f":"AZ359+AZ363+AZ373+AZ374+AZ375+AZ382+AZ387+AZ390","v":0}]
[null,null,null,null,"Valoare TVA (aferentă cheltuielilor eligibile şi neeligibile)"]
["TOTAL DEVIZ FINANCIAR 1 (inclusiv TVA)",null,null,null,null,null,null,null,null,null,null,null,null,null,null,null,null,null,null,null,null,null,null,null,null,null,null,null,null,null,null,null,null,null,null,null,null,null,null,null,null,null,{"$f":"AQ395+AZ395+AQ396+AZ396","v":0}]
[]
[]
[]
[]
[null,null,null,null,null,null,null,"DEVIZ PE OBIECT *",null,null,null,null,null,null,null,null,null,null,null,null,null,null,null,null,null,null,null,null,null,null,null,null,null,null,null,null,null,null,null,null,null,null,"Anexa A2\nHG 907/2016"]
[]
[null,null,null,null,null,null,null,null,null,null,null,null,null,null,null,null,null,null,null,null,null,null,null,null,null,null,null,null,null,null,null,null,null,null,null,null,null,null,null,null,null,null,"………….2017",null,null,null,null,null,null,null,null,"Nr.1"]
[]
[]
[]
["Nr. crt.",null,null,null,"Denumire",null,null,null,null,null,null,null,null,null,null,null,null,null,null,null,null,null,null,null,null,null,null,null,null,null,null,null,null,null,null,null,null,null,null,null,null,null,"Valoarea pe categorii de lucrări, fară TVA - EURO"]
["Cap. 4 + Cheltuieli pentru investiţia de bază",null,null,null,null,null,null,null,null,null,null,null,null,null,null,null,null,null,null,null,null,null,null,null,null,null,null,null,null,null,null,null,null,null,null,null,null,null,null,null,null,null,"Valoare eligibilă",null,null,null,null,null,null,null,null,"Valoare\nneeligibilă"]
["I - LUCRĂRI DE CONSTRUCŢII ŞI INSTALAŢII"]
["4.1",null,null,null,"Construcții și instalații"]
[null,null,null,null,"4.1.1 Terasamente, sistematizare pe verticală și amenajări exterioare"]
[null,null,null,null,"4.1.2 Rezistență"]
[null,null,null,null,"4.1.3 Arhitectură"]
[null,null,null,null,"4.1.4 Instalații"]
[null,null,null,null,"TOTAL I ( fără TVA)",null,null,null,null,null,null,null,null,null,null,null,null,null,null,null,null,null,null,null,null,null,null,null,null,null,null,null,null,null,null,null,null,null,null,null,null,null,{"$f":"SUM(AQ412:AY415)","v":0},null,null,null,null,null,null,null,null,{"$f":"SUM(AZ412:BI415)","v":0}]
["II - MONTAJ"]
["4.2",null,null,null,"Montaj utilaje, echipamente tehnologice și funcționale"]
[null,null,null,null,"TOTAL II ( fără TVA)",null,null,null,null,null,null,null,null,null,null,null,null,null,null,null,null,null,null,null,null,null,null,null,null,null,null,null,null,null,null,null,null,null,null,null,null,null,{"$f":"SUM(AQ418)","v":0},null,null,null,null,null,null,null,null,{"$f":"SUM(AZ418)","v":0}]
["III - PROCURARE"]
["4.3",null,null,null,"Utilaje, echipamente tehnologice și funcționale care necesită montaj"]
["4.4",null,null,null,"Utilaje, echipamente tehnologice și funcționale care nu necesită montaj și echipamente de transport"]
["4.5",null,null,null,"Dotări"]
["4.6",null,null,null,"Active necorporale"]
[null,null,null,null,"TOTAL III ( fără TVA)",null,null,null,null,null,null,null,null,null,null,null,null,null,null,null,null,null,null,null,null,null,null,null,null,null,null,null,null,null,null,null,null,null,null,null,null,null,{"$f":"SUM(AQ421:AY424)","v":0},null,null,null,null,null,null,null,null,{"$f":"SUM(AZ421:BI424)","v":0}]
["TOTAL ( TOTAL I + TOTAL II +TOTAL III) fără TVA",null,null,null,null,null,null,null,null,null,null,null,null,null,null,null,null,null,null,null,null,null,null,null,null,null,null,null,null,null,null,null,null,null,null,null,null,null,null,null,null,null,{"$f":"AQ425+AQ419+AQ416","v":0},null,null,null,null,null,null,null,null,{"$f":"AZ425+AZ419+AZ416","v":0}]
["TVA aferent cheltuielilor eligibile şi neeligibile"]
["TOTAL DEVIZ PE OBIECT (inclusiv TVA)",null,null,null,null,null,null,null,null,null,null,null,null,null,null,null,null,null,null,null,null,null,null,null,null,null,null,null,null,null,null,null,null,null,null,null,null,null,null,null,null,null,{"$f":"AQ426+AZ426+AQ427+AZ427","v":0}]
[]
[]
[]
[]
[null,null,null,null,null,null,null,null,null,null,null,null,null,null,null,null,null,null,null,null,null,null,null,null,null,null,null,null,null,null,null,null,null,null,null,null,null,null,null,null,null,null,"Anexa A3\nHG 907/2016"]
[]
[]
[]
[]
["           Anexa     A3                                 "]
[]
["Deviz capitolul 2- Cheltuieli pentru asigurarea utilităţilor necesare obiectivului - EURO"]
["Nr.crt",null,null,null,"Specificaţie",null,null,null,null,null,null,null,null,null,null,null,null,null,null,null,null,null,null,null,null,null,null,null,null,null,null,null,null,null,null,null,null,null,null,null,null,null,"Valoare eligibilă",null,null,null,null,null,null,null,null,"Valoare\nneeligibilă"]
[1,null,null,null,"Alimentare cu apă"]
[2,null,null,null,"Canalizare"]
[3,null,null,null,"Alimentare cu gaze naturale"]
[4,null,null,null,"Alimentare cu agent termic"]
[5,null,null,null,"Alimentare cu energie electrică"]
[6,null,null,null,"Telecomunicaţii (telefonie, radio-tv,etc)"]
[7,null,null,null,"Drumuri de acces"]
[8,null,null,null,"Căi ferate industriale"]
[9,null,null,null,"Alte utilități"]
[null,null,null,null,"Total valoare fără TVA",null,null,null,null,null,null,null,null,null,null,null,null,null,null,null,null,null,null,null,null,null,null,null,null,null,null,null,null,null,null,null,null,null,null,null,null,null,{"$f":"SUM(AQ442:AY450)","v":0},null,null,null,null,null,null,null,null,{"$f":"SUM(AZ442:BI450)","v":0}]
[null,null,null,null,"Valoare TVA aferentă cheltuielilor eligibile şi neeligibile"]
["TOTAL DEVIZ CAPITOLUL 2 (inclusiv TVA)",null,null,null,null,null,null,null,null,null,null,null,null,null,null,null,null,null,null,null,null,null,null,null,null,null,null,null,null,null,null,null,null,null,null,null,null,null,null,null,null,null,{"$f":"AQ451+AZ451+AQ452+AZ452","v":0}]
[]
[" Deviz capitolul 5 - Alte cheltuieli - EURO"]
["Nr.crt",null,null,null,"Specificaţie",null,null,null,null,null,null,null,null,null,null,null,null,null,null,null,null,null,null,null,null,null,null,null,null,null,null,null,null,null,null,null,null,null,null,null,null,null,"Valoare eligibilă",null,null,null,null,null,null,null,null,"Valoare\nneeligibilă"]
[]
["5.1 ",null,null,null,"Organizare de şantier",null,null,null,null,null,null,null,null,null,null,null,null,null,null,null,null,null,null,null,null,null,null,null,null,null,null,null,null,null,null,null,null,null,null,null,null,null,{"$f":"SUM(AQ459:AY460)","v":0},null,null,null,null,null,null,null,null,{"$f":"SUM(AZ459:BI460)","v":0}]
[null,null,null,null,"5.1.1 Lucrări de construcţii şi instalaţii aferente organizării de şantier"]
[null,null,null,null,"5.1.2 Cheltuieli conexe organizării de şantier"]
["5.2",null,null,null,"Comisioane, cote, taxe, costul creditului",null,null,null,null,null,null,null,null,null,null,null,null,null,null,null,null,null,null,null,null,null,null,null,null,null,null,null,null,null,null,null,null,null,null,null,null,null,{"$f":"SUM(AQ463:AY466)","v":0},null,null,null,null,null,null,null,null,{"$f":"SUM(AZ462:BI466)","v":0}]
[null,null,null,null,"5.2.1. Comisioanele şi dobânzile aferente creditului băncii finanţatoare"]
[null,null,null,null,"5.2.2. Cota aferentă ISC pentru controlul calităţii lucrărilor de construcţii"]
[null,null,null,null,"5.2.3. Cota aferentă ISC pentru controlul statului în amenajarea teritoriului, urbanism şi pentru autorizarea lucrărilor de construcţii"]
[null,null,null,null,"5.2.4. Cota aferentă Casei Sociale a Constructorilor - CSC"]
[null,null,null,null,"5.2.5. Taxe pentru acorduri, avize conforme şi autorizaţia de construire/desfiinţare"]
["5.3",null,null,null," Cheltuieli diverse si neprevazute"]
["5.4",null,null,null," Cheltuieli pentru informare și publicitate"]
[null,null,null,null,"TOTAL DEVIZ CAPITOLUL 5",null,null,null,null,null,null,null,null,null,null,null,null,null,null,null,null,null,null,null,null,null,null,null,null,null,null,null,null,null,null,null,null,null,null,null,null,null,{"$f":"AQ458+AQ461+AQ467","v":0},null,null,null,null,null,null,null,null,{"$f":"AZ458+AZ461+AZ467+AZ468","v":0}]
[null,null,null,null,"VALOARE TVA aferentă cheltuielilor eligibile şi neeligibile"]
[null,null,null,null,"TOTAL DEVIZ CAPITOLUL 5 ( inclusiv TVA)",null,null,null,null,null,null,null,null,null,null,null,null,null,null,null,null,null,null,null,null,null,null,null,null,null,null,null,null,null,null,null,null,null,null,null,null,null,{"$f":"AQ469+AZ469+AQ470+AZ470","v":0}]
[]
[]
[]
[null,null,null,null,null,null,null,null,null,null,null,null,null,null,null,null,null,null,null,null,null,null,null,null,null,null,null,null,null,null,"SECTIUNE SPECIFICA MASURA 5"]
[]
[]
["D. ALTE INFORMAȚII :"]
["Programarea proiectului:"]
["Numar luni de implementare"]
[]
["E. LISTA DOCUMENTELOR ANEXATE PROIECTELOR AFERENTE MĂSURII 6.4",null,null,null,null,null,null,null,null,null,null,null,null,null,null,null,null,null,null,null,null,null,null,null,null,null,null,null,null,null,null,null,null,null,null,null,null,null,null,null,null,null,null,null,null,null,null,null,null,null,null,null,null,null,null,"OPIS"]
[null,null,null,null,null,null,null,null,null,null,null,null,null,null,null,null,null,null,null,null,null,null,null,null,null,null,null,null,null,null,null,null,null,null,null,null,null,null,null,null,null,null,null,null,null,null,null,null,null,null,null,null,null,null,null,"documente"]
["A se anexa documentele în ordinea de mai jos:"]
["Lista documente",null,null,null,null,null,null,null,null,null,null,null,null,null,null,null,null,null,null,null,null,null,null,null,null,null,null,null,null,null,"Obligatoriu pentru toate proiectele",null,null,null,null,"Obligatoriu, dacă proiectul impune",null,null,null,null,null,null,"PAGINA de   la - până la",null,null,null,null,null,null,null,"Obligatoriu pentru toate proiectele",null,null,null,null,"Obligatoriu, dacă proiectul impune"]
["ETAPA:",null,null,null,null,null,null,null,null,null,null,null,null,null,null,null,null,null,null,null,null,null,null,null,null,null,null,null,null,null,"DEPUNERE",null,null,null,null,null,null,null,null,null,null,null,null,null,null,null,null,null,null,null,"CONTRACTARE"]
["DOC. 1.a) Studiul de Fezabilitate (atat pentru proiectele care prevad constructii-montaj cat si pentru proiectele fara constructii-montaj) (Anexa 2 din Ghidul solicitantului)."]
["DOC. 1.b) Expertiza tehnică de specialitate asupra construcţiei existente (in cazul proiectelor care prevăd modernizarea/ finalizarea construcţiilor existente/ achiziţii de utilaje cu montaj care schimbă regimul de exploatare a construcţiei existente)"]
["DOC 1.c) Raportul privind stadiul fizic al lucrărilor (în cazul proiectelor care prevăd modernizarea/ finalizarea construcţiilor existente/ achiziţii de utilaje cu montaj care schimbă regimul de exploatare a construcţiei existente). (numai în cazul construcțiilor nefinalizate)"]
["DOC. 2.1 Situaţiile financiare (bilanţ – formularul 10, contul de profit şi pierderi - formularul 20, formularele 30 și 40), precedente anului depunerii proiectului înregistrate la Administraţia Financiară,în care rezultatul operaţional (rezultatul de exploatare din contul de profit și pierdere - formularul 20 ) să fie pozitiv (inclusiv 0). În cazul în care solicitantul este înfiinţat cu cel puţin doi ani financiari înainte de anul depunerii cererii de finanţare se vor depune ultimele două situaţii financiare). Exceptie fac intreprinderile infiintate in anul depunerii cererii de finantare.\nsau"]
["Doc 2.2 Declaraţie privind veniturile realizate din Romania în anul precedent depunerii proiectului, înregistrată la Administraţia Financiară (formularul 200) insotita de Anexele la formular in care rezultatul brut (veniturile sa fie cel puţin egale cu cheltuielile) obtinut in anul precedent depunerii proiectului sa fie pozitiv (inclusiv 0)"]
["DOC. 2.3 Declaraţia privind veniturile din activităţi agricole impuse pe norme de venit (formularul 221), document obligatoriu de prezentat la depunerea cererii de finanţare;\nsau"]
["DOC. 2.4 Declaraţia de inactivitate înregistrată la Administraţia Financiară, în cazul solicitanţilor care nu au desfăşurat activitate anterior depunerii proiectului"]
["DOC. 3. Documente pentru terenurile și/sau clădirile aferente realizarii investiției:"]
["DOC. 3.1 Pentru proiectele care presupun realizarea de lucrări de construcție sau achizitia de utilaje/echipamente cu montaj, se va prezenta înscrisul care să certifice, după caz:\na) Dreptul de proprietate privată\nb) Dreptul de concesiune\nc) Dreptul de superficie;\nActele doveditoare ale dreptului de proprietate privată, reprezentate de înscrisurile constatatoare ale unui act juridic civil, jurisdicțional sau\nadministrativ cu efect constitutiv translativ sau declarativ de proprietate, precum:\n- Actele juridice translative de proprietate, precum contractele de vânzarecumpărare, donație, schimb, etc;\n- Actele juridice declarative de proprietate, precum împărțeala judiciară sau tranzacția;\n- Actele jurisdicționale declarative, precum hotărârile judecătorești cu putere de res-judicata, de partaj, de constatare a uzucapiunii imobiliare, etc.\n- Actele jurisdicționale, precum ordonanțele de adjudecare.\nContract de concesiune care acoperă o perioadă de cel puțin 10 ani începând cu anul depunerii cererii de finanţare, corespunzătoare asigurării sustenabilității investiției şi care oferă dreptul titularului de a executa lucrările\nde construcție prevăzute prin proiect, în copie.\nÎn cazul contractului de concesiune pentru cladiri, acesta va fi însoțit de o adresă emisă de concedent care să specifice dacă pentru clădirea concesionată există solicitări privind retrocedarea. În cazul contractului de concesiune pentru terenuri, acesta va fi însoțit de o adresă emisă de concedent care să specifice:\n- suprafaţa concesionată la zi - dacă pentru suprafaţa concesionată există solicitări privind retrocedarea sau diminuarea şi dacă da, să se menţioneze care este suprafaţa supusă acestui proces;\n- situaţia privind respectarea clauzelor contractuale, dacă este în graficul de realizare a investiţiilor prevăzute în contract, dacă concesionarul şi-a respectat graficul de plată a redevenţei şi alte clauze.\nContract de superficie care acoperă o perioadă de cel puțin 10 ani începând cu anul depunerii cererii de finanţare, corespunzătoare asigurării sustenabilității investiției şi care oferă dreptul titularului de a executa lucrările de construcție prevăzute prin proiect, în copie.\nDocumentele de mai sus vor fi însoțite de:"]
["Documente cadastrale şi documente privind înscrierea imobilelor în evidențele de cadastru și carte funciară (extras de carte funciară pentru informare din care să rezulte inscrierea imobilului în cartea funciară, precum și încheierea de carte funciară emisă de OCPI), în termen de valabilitate la data depunerii (emis cu maxim 30 de zile înaintea depunerii proiectului)."]
["DOC. 3.2 Pentru proiectele care propun doar dotare, achizitie de masini si/sau utilaje fara montaj sau al caror montaj nu necesita lucrari de constructii si/sau lucrari de interventii asupra instalatiilor existente (electricitate, apa, canalizare, gaze, ventilatie, etc.), se vor prezenta înscrisuri valabile pentru o perioadă de cel putin 10 ani începând cu anul depunerii cererii de finanţare care să certifice, după caz:\na) dreptul de proprietate privată,\nb) dreptul de concesiune,\nc) dreptul de superficie,\nd) dreptul de uzufruct;\ne) dreptul de folosinţă cu titlu gratuit;\nf) împrumutul de folosință (comodat)\ng) dreptul de închiriere/locațiune\nDe ex.: contract de cesiune, contract de concesiune, contract de locațiune/închiriere, contract de comodat.\n“Înscrisurile menționate la punctul 3.2 se vor depune respectand una dintre cele 2 conditii (situatii) de mai jos:\nA. vor fi însoțite de:\n-Documente cadastrale şi documente privind înscrierea imobilelor în evidențele de cadastru și carte funciară (extras de carte funciară pentru informare din care să rezulte înscrierea dreptului în cartea funciară, precum și încheierea de carte funciară emisă de OCPI), în termen de valabilitate la data depunerii (emis cu maxim 30 de zile înaintea depunerii proiectului)\nSAU\nB. vor fi încheiate în formă autentică de către un notar public sau emise de o autoritate publică sau dobândite printr-o hotărâre judecătorească."]
["În situaţia în care imobilul pe care se execută investiţia nu este liber de sarcini (ipotecat pentru un credit) se va depune acordul creditorului privind execuţia investiţiei şi graficul de rambursare a creditului."]
["DOC. 4. Extras din Registrul agricol – în copie cu ştampila primăriei şi menţiunea \"Conform cu originalul\" pentru dovedirea calităţii de membru al gospodăriei agricole."]
["DOC. 5. Copia actului de identitate pentru reprezentantul legal de proiect (asociat unic/asociat majoritar/administrator/PFA, titular II, membru IF)."]
["DOC. 6. Documente care atestă forma de organizare a solicitantului."]
["DOC. 6.1 Hotărâre judecătorească definitivă pronunţată pe baza actului de constituire și a statutului propriu în cazul Societăţilor agricole, însoțită de Statutul Societății agricole;"]
["DOC. 6.2 Act constitutiv pentru Societatea cooperativă agricolă."]
["DOC. 7.1 Certificat de cazier judiciar al solicitantului- persoană juridică"]
["DOC. 7.2 Certificat de cazier judiciar al reprezentantului legal-persoană fizică"]
["DOC. 8.1 Certificat de atestare fiscală pentru întreprindere"]
["DOC. 8.2 Certificat de atestare fiscală pentru reprezentantul legal;\nCertificatele vor fi emise de către Direcţia Generală a Finanţelor Publice şi de primăriile de pe raza cărora îşi au sediul social şi punctele de lucru (numai în cazul în care solicitantul este proprietar asupra imobilelor) şi, dacă este cazul, graficul de reeşalonare a datoriilor către bugetul consolidat."]
["DOC. 9. Document emis de AJPM, în conformitate cu Protocolul AFIRANPM-GNM."]
["DOC. 10. Declaraţie privind încadrarea întreprinderii în categoria întreprinderilor mici şi mijlocii (Anexa 6.1din Ghidul solicitantului)"]
["DOC. 11. Declaraţie pe propria răspundere a solicitantului privind respectarea regulii de cumul a ajutoarelor de minimis (Anexa 6.2 din Ghidul solicitantului)"]
["DOC. 12. Documente care dovedesc capacitatea şi sursa de co-finanţare a investiţiei emise de o instituţie financiară în original (extras de cont şi/ sau contract de credit) în termen de maxim 90 de zile de la primirea notificării privind selectarea cererii de finanţare;"]
["DOC. 13. Adresă emisă de instituţia financiară (bancă/trezorerie) cu datele de identificare ale băncii şi ale contului aferent proiectului FEADR (denumirea, adresa băncii, codul IBAN al contului în care se derulează operaţiunile cu AFIR). Nu este obligatorie deschiderea unui cont separat pentru derularea proiectului."]
["DOC. 14. Certificat de urbanism pentru investitia propusă prin proiect/Autorizaţie de construire pentru proiecte care prevăd construcţii, însoţit, dacă este cazul, de actul de transfer a dreptului şi obligaţiilor ce decurg din Certificatul de urbanism şi o copie a adresei de înştiinţare."]
["DOC. 15. Aviz specific privind amplasamentul şi funcţionarea obiectivului eliberat de ANT pentru construcţia/modernizarea sau extinderea structurilor de primire turistice cu funcțiuni de cazare sau restaurante clasificate conform Ordinului 65/2013 si in conformitate cu Ordonanţa de Urgenţă nr. 142 din 28 octombrie 2008, cu modificările şi completările ulterioare."]
["Doc.16  Avizul Ministerului Turismului conf.H.G. nr. 31 din 24 ianuarie 1996 pentru aprobarea Metodologiei de avizare a documentațiilor de urbanism privind zone și stațiuni turistice și a documentațiilor tehnice privind construcții din domeniul turismului"]
["DOC. 17. Certificat de clasificare eliberat de ANT pentru structura de primire turistică cu funcțiuni de cazare sau restaurante clasificate conform Ordinului 65/2013 si in conformitate cu Ordonanţa de Urgenţă nr. 142 din 28 octombrie 2008 (în cazul modernizării/extinderii), cu modificările şi completările ulterioare."]
["DOC. 18. Declaraţie pe propria răspundere a solicitantului cu privire la neîncadrarea în categoria \"firma în dificultate\", semnată de persoana autorizată să reprezinte intreprinderea, conform legii \". Declaraţia va fi dată de toţi solicitanţii cu excepţia PFA-urilor, intreprinderilor individuale, intreprinderilor familiale şi a societăţilor cu mai puţin de 2 ani fiscali."]
["DOC. 19. Declaraţie pe propria răspundere a solicitantului ca nu a beneficiat de servicii de consiliere prin M-02 (Anexa 6.4 din Ghidul solicitantului)"]
["DOC. 20. Declaratie expert contabil din care sa reiasa că solicitantul in anul precedent depunerii cererii de finanare a obtinut venituri din exploatare iar veniturile din activitățile agricole reprezintă cel puțin 50% din total venituri din exploatare ale solicitantului."]
["DOC. 21. Document emis de DSP județeană conform tipurilor de documente mentionate în protocolul de colaborare dintre AFIR și Ministerul Sănătății"]
["DOC. 22. Document emis de DSVSA, conform Protocolului de colaborare dintre AFIR şi ANSVSA publicat pe pagina de internet www.afir.info"]
["DOC. 23. Certificat de cazier fiscal al solicitantului"]
["DOC 24. Extras din Strategia de Dezvoltare Locală GAL SIRET-MOLODOVA privind încadrarea proiectului în SDL"]
["DOC 25. Declarație  raportare GAL "]
["DOC 26. Copia Certificatului de Înregistrare laOficiul Național al  Registrului Comerțului"]
[" DOC 27. Alte documente (după caz)"]
[]
[]
[]
[]
[]
["F. DECLARAŢIE PE PROPRIA RĂSPUNDERE A SOLICITANTULUI"]
["(nebifarea unei căsuțe din partea F a cererii de finanțare, dacă proiectul impune, constituie eroare de fond, situație în care proiectul este declarat neeligibil)"]
["Prin această declaraţie solicitantul"]
[]
["care solicită asistență financiară nerambursabilă prin programul FEADR pentru proiectul intitulat"]
[]
["prin reprezentant legal"]
[]
["cunoscând prevederile legii penale cu privire la falsul în declarații:"]
["1. Declar că proiectul propus asistenței financiare nerambursabile FEADR nu beneficiază de altă finanțare din\nprograme de finanțare nerambursabilă."]
["De asemenea mă angajez ca în cazul în care proiectul va fi selectat pentru finanțare FEADR, nu voi depune acest\nproiect la nici un alt program de finanțare nerambursabilă la care proiectul poate fi în întregime sau parțial eligibil\npentru asistență."]
["2. Declar pe propria răspundere că îndeplinesc condiţiile minime de acordare a sprijinului prevăzute în fişa măsurii şi ghidul solicitantului şi mă angajez să le respect pe perioada de valabilitate a contractului de finanţare şi monitorizare a proiectului, inclusiv criteriile de selecţie pentru care am fost punctat."]
["3. Declar pe propria răspundere că toate informaţiile din prezenta cerere de finanţare şi din documentele anexate sunt corecte şi mă angajez să respect condiţiile cerute în reglementările referitoare la prezentul program şi pe cele legate de Studiul de fezabilitate şi să furnizez periodic, la cerere, documente justificative necesare."]
["4. Declar pe propria răspundere că orice modificări aduse dreptului de proprietate sau de folosinţă vor fi notificate AFIR în termen de trei zile de la data incheierii lor. De asemenea, mă angajez, ca pe perioada de valabilitate a contractului de finanţare şi monitorizare a proiectului să nu diminuez suprafaţa şi/sau infrastructura cuprinsă în proiect."]
["5. Declar că eu și organizația mea (asociație sau intreprindere) nu suntem într-unul din următoarele cazuri:"]
[null,null,null,"Acuzat din cauza unei greșeli privind conduita profesională având ca soluție finală res judicata (împotriva căreia nici un apel nu este posibil)"]
[null,null,null,"Vinovat de grave deficiențe de conduită profesională dovedite prin orice mijloace pe care Agenția le poate justifica."]
[null,null,null,"Vinovat de faptul că nu am prezentat informaţiile cerute de Autoritatea Contractantă ca o condiţie de participare la licitaţie sau contractare"]
[null,null,null,"Încălcarea prevederilor contractuale prin care nu mi-am îndeplinit obligațiile contractuale în legătură cu un alt contract cu Agenția sau alte contracte finanțate din fonduri comunitare."]
[null,null,null,"Încercarea de a obține informații confidențiale sau de influențare a Agenției în timpul procesului de evaluare a proiectului și nu voi face presiuni la adresa evaluatorului."]
["6.",null,null,null,null,"Declar că organizaţia pe care o reprezint ARE datorii către instituţii de credit şi/sau institutii financiare bancare/nebancare pentru care prezint graficul de rambursare."]
["7.",null,null,null,null,"Declar că organizația pe care o reprezint NU are datorii către instituții de credit şi/sau instituții financiare\nnebancare."]
["8.",null,null,null,null,"Declar pe propria răspundere că:"]
[null,null,null,null,null,"Nu sunt înregistrat în scopuri TVA și că mă angajez să notific Agenției orice modificare a situatiei privind înregistrarea ca plătitor de TVA, în maximum 10 (zece) zile de la data înregistrării în scopuri TVA."]
[null,null,null,null,null,"Sunt înregistrat în scopuri de TVA (certificat de înregistrare fiscală în scopuri de TVA)."]
["9.1",null,null,null,null,"Declar pe propria răspundere că nu am înscrieri care privesc sancțiuni economico-financiare în cazierul\njudiciar pe care mă oblig să îl depun la încheierea contractului de finanțare."]
["9.2",null,null,null,null,"Declar pe propria răspundere că reprezentantul legal nu are înscrieri privind sancţiuni economico-financiare în certificatul de cazier judiciar - persoană fizică, pe care mă oblig să-l depun la încheierea contractului de finanțare"]
["10.",null,null,null,null,"Declar pe propria răspundere că nu am fapte înscrise în cazierul fiscal pe care mă oblig să îl depun la încheierea contractului de finanţare."]
["11.",null,null,null,null,"Declar pe propria răspundere că voi deschide punct de lucru în spaţiul rural, cu codul CAEN al activităţii pentru care solicită finanţare, când voi îndeplini condiţiile, conform legislaţiei în vigoare (pentru investiţii noi, dacă este cazul)."]
["12.",null,null,null,null,"Mă angajez că la momentul finalizării agro-pensiunii, aceasta va fi introdusă în circuitul turistic (în cazul proiectelor care prevăd agropensiuni)."]
["13.",null,null,null,null,"Declar pe proprie răspundere că investiţia finanţată va deservi exclusiv interesele economice ale acestuia (beneficiarului proiectului) în scopul obţinerii de profit propriu."]
["14.",null,null,null,null,"Declar pe propria răspundere că nivelul de confort şi calitatea serviciilor propuse prin proiect vor atinge standardul de calitate de minimum o margaretă (în cazul proiectelor care prevăd agropensiuni)."]
["15.",null,null,null,null,"Declaraţie pe propria raspundere că modernizarea structurii de primire turistica va presupune in mod obligatoriu cresterea nivelului de confort cu cel putin o margareta (în cazul proiectelor care prevăd agropensiuni)"]
["16.",null,null,null,null,"Declar pe propria răspundere că toate cheltuielile neeligibile vor fi suportate de solicitant şi că acestea vor fi realizate până la finalizarea proiectului."]
["17.",null,null,null,null,"Ma angajez ca in termenul prevazut in “Notificarea beneficiarului privind selectarea cererii de finanatare si semnarea contractului de finantare” sa prezint documentul privind cofinantarea proiectului si Angajamentul responsabilului legal al proiectului ca nu va utiliza in alte scopuri 50% din cofinantarea privata, in cazul prezentarii cofinantarii prin extras de cont."]
["18.",null,null,null,null,"Declar pe propria răspundere că în cazul în care nu respect oricare din punctele prevăzute în această declaraţie, proiectul să devină neeligibil în baza criteriului \"Eligibilitatea solicitantului\" sau contractul să fie reziliat."]
["19.",null,null,null,null,"Declar pe propria răspundere ca nu sunt în insolventă sau incapacitate de plată."]
["20.",null,null,null,null,"Accept publicarea pe site-ul AFIR a datelor mele, cu respectarea legislaţiei naţionale şi europene privind transparenţa."]
["21.",null,null,null,null,"Sunt de acord ca AFIR să consulte și să prelucreze, prin operațiunile prevăzute de legislația în vigoare în vederea desfășurării activității specifice, datele mele cu caracter personal, furnizate AFIR."]
[]
["Semnătura reprezentant legal şi ştampila",null,null,null,null,null,null,null,null,null,null,null,null,null,null,null,null,null,null,null,null,null,null,null,null,null,null,null,null,null,null,null,null,null,null,null,null,null,null,null,null," Data:"]
[]
[]
["Anexa INDICATORI DE MONITORIZARE"]
["Măsura 5 - Diversificarea activităților non-agricole în mediul rural\ncu obiective ce se incadrează în prevederile art. 19, alin (1), lit(b) corespondență sM ”Investiții în crearea și dezvoltarea de activități neagricole"]
[]
[null,null,null,null,null,null,null,null,null,null,null,null,null,null,null,null,null,null,null,null,null,null,null,null,null,null,null,null,null,null,null,null,null,null,null,null,null,null,null,null,null,null,null,null,null,null,null,null,null,null,{"$f":"R133&\"\"","v":""}]
["1. Cod CAEN",null,null,null,null,null,null,null,null,null,null,null,null,null,null,null,null,null,null,null,null,null,null,null,null,null,null,null,null,null,null,null,null,null,null,null,null,null,null,null,null,null,null,null,null,null,null,null,null,null,{"$f":"C131&E131&G131&I131","v":""}]
["2. Tipul beneficiarului",null,null,null,null,null,null,null,null,null,null,null,null,null,null,null,null,"Solicitanți înființați în baza OUG 44/ 2008; OG 124/ 1998; Legea nr.160/ 1998",null,null,null,null,null,null,null,null,null,null,null,"Bărbați",null,null,null,null,null,null,null,null,null,null,null,"<=40"]
[null,null,null,null,null,null,null,null,null,null,null,null,null,null,null,null,null,null,null,null,null,null,null,null,null,null,null,null,null,null,null,null,null,null,null,null,null,null,null,null,null,">40"]
[null,null,null,null,null,null,null,null,null,null,null,null,null,null,null,null,null,null,null,null,null,null,null,null,null,null,null,null,null,"Femei",null,null,null,null,null,null,null,null,null,null,null,"<=40"]
[null,null,null,null,null,null,null,null,null,null,null,null,null,null,null,null,null,null,null,null,null,null,null,null,null,null,null,null,null,null,null,null,null,null,null,null,null,null,null,null,null,">40"]
[null,null,null,null,null,null,null,null,null,null,null,null,null,null,null,null,null,"Persoană juridică"]
["3. Statutul beneficiarului",null,null,null,null,null,null,null,null,null,null,null,null,null,null,null,null,"Fermier"]
[null,null,null,null,null,null,null,null,null,null,null,null,null,null,null,null,null,"Membru al unei gospodării agricole"]
[null,null,null,null,null,null,null,null,null,null,null,null,null,null,null,null,null,"Microintreprindere nou înființată"]
[null,null,null,null,null,null,null,null,null,null,null,null,null,null,null,null,null,"Întreprindere mică nou înființată"]
[null,null,null,null,null,null,null,null,null,null,null,null,null,null,null,null,null,"Microintreprindere existentă"]
[null,null,null,null,null,null,null,null,null,null,null,null,null,null,null,null,null,"Întreprindere mică existentă"]
["4. Tipul de zonă",null,null,null,null,null,null,null,null,null,null,null,null,null,null,null,null,"Zonă normală"]
[null,null,null,null,null,null,null,null,null,null,null,null,null,null,null,null,null,"Zonă montană"]
[null,null,null,null,null,null,null,null,null,null,null,null,null,null,null,null,null,"Zonă cu constrângeri specifice"]
[null,null,null,null,null,null,null,null,null,null,null,null,null,null,null,null,null,"Zonă cu constrângeri semnificative"]
["5. Tipul de investiției",null,null,null,null,null,null,null,null,null,null,null,null,null,null,null,null,"a. investiții pentru producerea și comercializarea produselor nonagricole"]
[null,null,null,null,null,null,null,null,null,null,null,null,null,null,null,null,null,"b. investiții pentru activității meșteșugărești"]
[null,null,null,null,null,null,null,null,null,null,null,null,null,null,null,null,null,"c. investiții legate de furnizarea de servicii"]
[null,null,null,null,null,null,null,null,null,null,null,null,null,null,null,null,null,"d. investitii pentru infrastructura in unitatile de primire turistica de tip agro-turistic, activitati de agrement"]
[null,null,null,null,null,null,null,null,null,null,null,null,null,null,null,null,null,"e. investitii pentru productia de combustibil din biomasa (ex.: fabricare de peleți si brichete) în vederea comercializării"]
["6. Suprafaţa (ha) exploataţiei/exploataţiilor sprijinite\n(se completează numai pentru solicitanţii care deţin exploataţii agricole şi se încadrează în categoria fermierilor sau a membrilor gospodăriilor agricole)"]
["7. Tip ramură agricolă\n(se completează numai pentru solicitanţii care deţin exploataţii agricole şi se încadrează în categoria fermierilor sau a membrilor gospodăriilor agricole)",null,null,null,null,null,null,null,null,null,null,null,null,null,null,null,null,"Culturi de câmp"]
[null,null,null,null,null,null,null,null,null,null,null,null,null,null,null,null,null,"Horticultură"]
[null,null,null,null,null,null,null,null,null,null,null,null,null,null,null,null,null,"Viticultură"]
[null,null,null,null,null,null,null,null,null,null,null,null,null,null,null,null,null,"Culturi permanente (altele decât viticultura)"]
[null,null,null,null,null,null,null,null,null,null,null,null,null,null,null,null,null,"Creștere bovine pentru carne"]
[null,null,null,null,null,null,null,null,null,null,null,null,null,null,null,null,null,"Creștere bovine pentru lapte"]
[null,null,null,null,null,null,null,null,null,null,null,null,null,null,null,null,null,"Creștere ovine și caprine"]
[null,null,null,null,null,null,null,null,null,null,null,null,null,null,null,null,null,"Porcine"]
[null,null,null,null,null,null,null,null,null,null,null,null,null,null,null,null,null,"Păsări de curte"]
[null,null,null,null,null,null,null,null,null,null,null,null,null,null,null,null,null,"Mixte - culturi mixte"]
[null,null,null,null,null,null,null,null,null,null,null,null,null,null,null,null,null,"Mixte - animale mixte"]
[null,null,null,null,null,null,null,null,null,null,null,null,null,null,null,null,null,"Mixte - culturi și animale cu excepția albinelor"]
[null,null,null,null,null,null,null,null,null,null,null,null,null,null,null,null,null,"Albine"]
[null,null,null,null,null,null,null,null,null,null,null,null,null,null,null,null,null,"Altele"]
["8. Număr locuri de muncă",null,null,null,null,null,null,null,null,null,null,null,null,null,null,null,null,"Existente"]
[null,null,null,null,null,null,null,null,null,null,null,null,null,null,null,null,null,"Nou create",null,null,null,null,null,null,null,null,null,null,null,"Bărbați"]
[null,null,null,null,null,null,null,null,null,null,null,null,null,null,null,null,null,null,null,null,null,null,null,null,null,null,null,null,null,"Femei"]
["9. Contribuie la Prioritatea 1",null,null,null,null,null,null,null,null,null,null,null,null,null,null,null,null,"M01 - Transfer de cunoştinţe şi acţiuni de informare"]
[null,null,null,null,null,null,null,null,null,null,null,null,null,null,null,null,null,"M02 - Servicii de consiliere"]
[null,null,null,null,null,null,null,null,null,null,null,null,null,null,null,null,null,"M16 - Cooperare"]
["Indic. nr.1 - reprezintă codul de inregistrare al beneficiarului în Registrul Fermierului la APIA;\nIndic. nr.2 - reprezintă codul CAEN completat de solicitant la prima pozitie din cele maxim 5 coduri CAEN din Cererea de Finantare pentru investiţia/investitiile vizată/vizate prin proiect;\nIndic. nr. 3, 4, 5, 6 - se va bifa doar o singura categorie/ categoria majoritară\nIndic. nr. 7 şi 8 - aceşti indicatori (suprafaţa exploataţiei agricole şi tip ramură agricolă) se vor completa numai pentru solicitanţii care deţin exploataţii agricole şi se încadrează în categoria fermierilor sau a membrilor gospodăriilor agricole. În cazul în care solicitantul nu deţine o suprafaţă, exploataţia vizează doar creşterea animalelor, la indicatorul “Suprafaţa exploataţiei agricole sprijinite” va completa “0”, iar la “Tip ramură agricolă” va bifa ramura agricolă la care se încadrează.\nIndic. nr.9 - se va completa numărul locurilor de muncă existente şi numărul locurilor de muncă nou create prin proiect\nIndic. nr. 10 - se va completa din momentul demararii M01, M02, respectiv M16, cu bifa în dreptul măsurii corespunzătoare,dacă va fi cazul."]
[]
[]
[]
[]
[]
[]
[]
[]
["In cazul in care nu aveti un cod unic de inregistrare APIA, completati acest formular."]
[]
["FORMULAR"]
[]
["Programului naţional de dezvoltare rurală 2014 - 2020"]
[]
["Denumire solicitant:"]
[]
["Categorie Solicitant:"]
[]
["Sediul / Adresa"]
[]
["Ţara",null,null,null,null,"România",null,null,null,null,null,null,null,null,"Judeţul",null,null,null,null,null,null,null,null,null,null,null,null,null,null,null,null,null,null,"oraşul"]
[]
["comuna",null,null,null,null,null,null,null,null,null,null,null,null,null,null,null,null,null,null,null,null,"satul",null,null,null,null,null,null,null,null,null,null,null,null,null,null,null,null,null,"strada"]
[]
["nr.",null,null,null,null,null,null,null,"bl.",null,null,null,null,null,"et.",null,null,null,null,"ap.",null,null,null,null,null,"sectorul",null,null,null,null,null,null,null,null,null,null,null,null,"codul poştal"]
[]
["Număr de telefon",null,null,null,null,null,null,null,null,null,null,null,null,null,null,null,null,null,null,null,null,null,null,"Fax",null,null,null,null,null,null,null,null,null,null,null,null,null,null,"E-mail"]
[]
["Număr de înregistrare în registrul comerțului/Registrul asociațiilor și fundațiilor"]
[]
["CUI / CIF"]
[]
["Cod CAEN pentru activitatea principală"]
[]
["Cod CAEN pentru activitatea secundară pentru care se solicită înregistrarea în Registrul unic de identificare"]
[]
["Cod IBAN"]
[]
["deschis la Banca"]
[]
["Sucursala / Agenție"]
[]
["Prin reprezentant legal, doamna/domnul"]
[]
["cu CNP",null,null,null,null,null,null,null,null,null,null,null,null,null,null,"solicit înscrierea în Registrul unic de identificare - Agenţia de Plăţi şi Intervenţie pentru Agricultură."]
[]
["Am luat la cunoştinţă că orice modificare a informaţiilor de mai sus trebuie furnizată către APIA în termen de maximum 10 zile\nlucrătoare de la producerea acestora.\nDeclar pe propria răspundere că cele de mai sus sunt conforme cu realitatea.\nSunt de acord ca datele din cerere să fie introduse în baza de date a Sistemului Integrat de Administrare şi Control, procesate şi\nverificate în vederea înscrierii în Registrul unic de identificare şi transmise autorităţilor responsabile în vederea elaborării de studii\nstatistice şi de evaluări economice, în condiţiile Legii nr. 677-2001 pentru protecţia persoanelor cu privire la prelucrarea datelor cu\ncaracter personal şi libera circulaţie a acestor date, cu modificarile şi completările ulterioare."]
[]
["Reprezentant legal",null,null,null,null,null,null,null,null,null,null,null,null,null,null,null,null,null,null,null,null,null,null,null,null,null,null,null,null,null,null,null,null,null,null,null,null,null,null,null,null,null,null,"Data:"]
[]
["Numele şi prenumele"]
[]
["Semnătura "]

{"sheet":"Anexa 1","index":1,"n_rows":95,"n_cols":52,"rows_kept":95,"cut":false,"hidden":false,"merged":[[0,42,1,60],[1,7,1,41],[2,7,2,41],[2,42,2,50],[2,51,2,60],[3,7,3,60],[4,0,4,60],[5,0,5,60],[6,0,6,60],[7,0,7,3],[7,4,7,41],[7,42,7,50],[7,51,7,60],[8,0,8,3],[8,4,8,41],[8,42,8,50],[8,51,8,60],[9,0,9,3],[9,4,9,41],[9,42,9,50],[9,51,9,60],[10,0,10,3],[10,4,10,41],[10,42,10,50],[10,51,10,60],[11,0,11,3],[11,4,11,41],[11,42,11,50],[11,51,11,60],[12,0,12,3],[12,4,12,41],[12,42,12,50],[12,51,12,60],[13,0,13,3],[13,4,13,41],[13,42,13,50],[13,51,13,60],[14,0,14,3],[14,4,14,41],[14,42,14,50],[14,51,14,60],[15,0,15,3],[15,4,15,41],[15,42,15,50],[15,51,15,60],[16,0,16,3],[16,4,16,41],[16,42,16,50],[16,51,16,60],[17,0,17,3],[17,4,17,41],[17,42,17,50],[17,51,17,60],[18,0,18,3],[18,4,18,41],[18,42,18,50],[18,51,18,60],[19,0,19,3],[19,4,19,41],[19,42,19,50],[19,51,19,60],[20,0,20,3],[20,4,20,41],[20,42,20,50],[20,51,20,60],[21,0,21,3],[21,4,21,41],[21,42,21,50],[21,51,21,60],[22,0,22,3],[22,42,22,50],[22,51,22,60],[23,0,23,3],[23,42,23,50],[23,51,23,60],[22,4,22,41],[23,4,23,41],[24,0,24,3],[24,42,24,50],[24,51,24,60],[25,0,25,3],[25,42,25,50],[25,51,25,60],[26,0,26,3],[26,42,26,50],[26,51,26,60],[24,4,24,41],[25,4,25,41],[26,4,26,41],[27,0,27,3],[27,42,27,50],[27,51,27,60],[28,0,28,3],[28,4,28,41],[28,42,28,50],[28,51,28,60],[29,0,29,3],[29,4,29,41],[29,42,29,50],[29,51,29,60],[27,4,27,41],[30,0,30,3],[30,4,30,41],[30,42,30,50],[30,51,30,60],[31,0,31,3],[31,4,31,41],[31,42,31,50],[31,51,31,60],[32,0,32,3],[32,4,32,41],[32,42,32,50],[32,51,32,60],[33,0,33,3],[33,4,33,41],[33,42,33,50],[33,51,33,60],[34,0,34,3],[34,4,34,41],[34,42,34,50],[34,51,34,60],[35,0,35,3],[35,4,35,41],[35,42,35,50],[35,51,35,60],[36,0,36,3],[36,4,36,41],[36,42,36,50],[36,51,36,60],[37,0,37,3],[37,4,37,41],[37,42,37,50],[37,51,37,60],[38,0,38,3],[38,4,38,41],[38,42,38,50],[38,51,38,60],[46,0,46,41],[46,42,46,60],[47,7,47,41],[48,42,49,60],[39,0,39,3],[39,4,39,41],[39,42,39,50],[39,51,39,60],[40,0,40,3],[40,4,40,41],[40,42,40,50],[40,51,40,60],[41,0,41,3],[41,4,41,41],[41,42,41,50],[41,51,41,60],[42,0,42,3],[42,4,42,41],[42,42,42,50],[42,51,42,60],[43,0,43,3],[43,4,43,41],[43,42,43,50],[43,51,43,60],[55,0,55,3],[55,4,55,41],[55,42,55,50],[55,51,55,60],[53,0,53,60],[54,0,54,60],[50,42,50,50],[50,51,50,60],[50,7,50,41],[51,7,51,60],[52,0,52,60],[56,0,56,3],[56,4,56,41],[56,42,56,50],[56,51,56,60],[57,0,57,3],[57,4,57,41],[57,42,57,50],[57,51,57,60],[58,0,58,3],[58,4,58,41],[58,42,58,50],[58,51,58,60],[59,0,59,3],[59,4,59,41],[59,42,59,50],[59,51,59,60],[60,0,60,3],[60,4,60,41],[60,42,60,50],[60,51,60,60],[61,0,61,3],[61,4,61,41],[61,42,61,50],[61,51,61,60],[62,0,62,3],[62,4,62,41],[62,42,62,50],[62,51,62,60],[63,0,63,3],[63,4,63,41],[63,42,63,50],[63,51,63,60],[64,0,64,3],[64,42,64,50],[64,51,64,60],[64,4,64,41],[65,0,65,3],[65,42,65,50],[65,51,65,60],[66,0,66,3],[66,42,66,50],[66,51,66,60],[67,0,67,3],[67,42,67,50],[67,51,67,60],[65,4,65,41],[66,4,66,41],[67,4,67,41],[68,0,68,3],[68,42,68,50],[68,51,68,60],[69,0,69,3],[69,42,69,50],[69,51,69,60],[70,0,70,3],[70,4,70,41],[70,42,70,50],[70,51,70,60],[68,4,68,41],[69,4,69,41],[71,0,71,3],[71,4,71,41],[71,42,71,50],[71,51,71,60],[72,0,72,3],[72,4,72,41],[72,42,72,50],[72,51,72,60],[73,0,73,3],[73,4,73,41],[73,42,73,50],[73,51,73,60],[74,0,74,3],[74,4,74,41],[74,42,74,50],[74,51,74,60],[75,0,75,3],[75,4,75,41],[75,42,75,50],[75,51,75,60],[76,0,76,3],[76,4,76,41],[76,42,76,50],[76,51,76,60],[77,0,77,3],[77,4,77,41],[77,42,77,50],[77,51,77,60],[78,0,78,3],[78,4,78,41],[78,42,78,50],[78,51,78,60],[79,0,79,3],[79,4,79,41],[79,42,79,50],[79,51,79,60],[44,0,44,3],[44,4,44,41],[45,0,45,3],[45,4,45,41],[45,42,45,50],[45,51,45,60],[44,42,44,50],[44,51,44,60],[83,0,83,3],[83,4,83,41],[83,42,83,50],[83,51,83,60],[80,0,80,3],[80,4,80,41],[80,42,80,50],[80,51,80,60],[81,0,81,3],[81,4,81,41],[81,42,81,50],[81,51,81,60],[82,0,82,3],[82,4,82,41],[82,42,82,50],[82,51,82,60],[84,0,84,3],[84,4,84,41],[84,42,84,50],[84,51,84,60],[85,0,85,3],[85,4,85,41],[85,42,85,50],[85,51,85,60],[86,0,86,3],[86,4,86,41],[86,42,86,50],[86,51,86,60],[87,0,87,3],[87,4,87,41],[87,42,87,50],[87,51,87,60],[88,0,88,3],[88,4,88,41],[88,42,88,50],[88,51,88,60],[89,0,89,3],[89,4,89,41],[89,42,89,50],[89,51,89,60],[93,0,93,3],[93,4,93,41],[93,42,93,50],[93,51,93,60],[94,0,94,41],[94,42,94,60],[90,0,90,3],[90,4,90,41],[90,42,90,50],[90,51,90,60],[91,0,91,3],[91,4,91,41],[91,42,91,50],[91,51,91,60],[92,0,92,3],[92,4,92,41],[92,42,92,50],[92,51,92,60]]}
[null,null,null,null,null,null,null,null,null,null,null,null,null,null,null,null,null,null,null,null,null,null,null,null,null,null,null,null,null,null,null,null,null,null,null,null,null,null,null,null,null,null,"Anexa A1\nHG 907/2016"]
[]
[null,null,null,null,null,null,null,null,null,null,null,null,null,null,null,null,null,null,null,null,null,null,null,null,null,null,null,null,null,null,null,null,null,null,null,null,null,null,null,null,null,null,"…………..2017",null,null,null,null,null,null,null,null,"Nr.2"]
[null,null,null,null,null,null,null,"Deviz financiar- Capitolul 3 - Cheltuieli pentru proiectare şi asistenţa tehnică - EURO"]
[]
[]
["(Titlu deviz)"]
["Nr.crt",null,null,null,"Specificaţie",null,null,null,null,null,null,null,null,null,null,null,null,null,null,null,null,null,null,null,null,null,null,null,null,null,null,null,null,null,null,null,null,null,null,null,null,null,"Valoare eligibilă",null,null,null,null,null,null,null,null,"Valoare\nneeligibilă"]
["3.1",null,null,null,"Cheltuieli pentru studii - total din care:",null,null,null,null,null,null,null,null,null,null,null,null,null,null,null,null,null,null,null,null,null,null,null,null,null,null,null,null,null,null,null,null,null,null,null,null,null,{"$f":"SUM(AQ10:AY12)","v":0},null,null,null,null,null,null,null,null,{"$f":"SUM(AZ10:BI12)","v":0}]
[null,null,null,null,"3.1.1 Studii de teren: geotehnice, geologice, hidrologice, hidrogeotehnice, fotogrammetrice, topografice şi de stabilitate ale terenului pe care se amplasează obiectivul de investiţie"]
[null,null,null,null,"3.1.2 Raport privind impactul asupra mediului"]
[null,null,null,null,"3.1.3 Studii de specialitate necesare în funcție de specificul investiției"]
["3.2",null,null,null,"Documentaţii-suport şi cheltuieli pentru obţinerea de avize, acorduri şi autorizaţii",null,null,null,null,null,null,null,null,null,null,null,null,null,null,null,null,null,null,null,null,null,null,null,null,null,null,null,null,null,null,null,null,null,null,null,null,null,{"$f":"SUM(AQ14:AY22)","v":0},null,null,null,null,null,null,null,null,{"$f":"SUM(AZ14:BI22)","v":0}]
[null,null,null,null,"1. obţinerea/prelungirea valabilităţii ceritificatului de urbanism"]
[null,null,null,null,"2. obţinerea/prelungirea valabilităţii autorizaţiei de construire/desfiinţare"]
[null,null,null,null,"3. obţinerea avizelor şi acordurilor pentru racorduri şi branşamente la reţelele publice de alimentare cu apă, canalizare, alimentare cu gaze, alimentare cu agent termic, energie electrică, telefonie"]
[null,null,null,null,"4. obţinerea certificatului de nomenclatură stradală şi adresa"]
[null,null,null,null,"5. întocmirea documentaţiei, obţinerea numărului cadastral provizoriu şi înregistrarea terenului în cartea funciară"]
[null,null,null,null,"6. obținerea actului administrativ al autorității competente pentru protecția mediului"]
[null,null,null,null,"7. obţinerea avizului de protecție civilă"]
[null,null,null,null,"8. avizul de specialitate în cazul obiectivelor de patrimoniu"]
[null,null,null,null,"9. alte avize, acorduri şi autorizaţii"]
["3.3",null,null,null,"Cheltuieli pentru expertizarea tehnică a construcţiilor existente, a structurilor şi/sau, după caz, a proiectelor tehnice, inclusiv întocmirea de către expertul tehnic a raportului de expertiză tehnică"]
["3.4",null,null,null,"Cheltuieli pentru certificarea performanţei energetice şi auditul energetic al\nclădirilor"]
["3.5",null,null,null,"Cheltuieli pentru proiectare",null,null,null,null,null,null,null,null,null,null,null,null,null,null,null,null,null,null,null,null,null,null,null,null,null,null,null,null,null,null,null,null,null,null,null,null,null,{"$f":"SUM(AQ26:AY31)","v":0},null,null,null,null,null,null,null,null,{"$f":"SUM(AZ26:BI31)","v":0}]
[null,null,null,null,"3.5.1 Temă de proiectare"]
[null,null,null,null,"3.5.2 Studiu de prefezabilitate"]
[null,null,null,null,"3.5.3. Studiu de prefezabilitate/documentație de avizare a lucrărilor de intervenții și deviz general"]
[null,null,null,null,"3.5.4. Documentațiile tehnice necesare în vederea obținerii avizelor/ acordurilor/ autorizațiilor"]
[null,null,null,null,"3.5.5. Verificarea tehnică de calitate a proiectului tehnic și a detaliilor de execuție"]
[null,null,null,null,"3.5.6. Proiect tehnic și detalii de execuție"]
["3.6",null,null,null,"Cheltuieli aferente organizării şi derulării procedurilor de achiziţii publice",null,null,null,null,null,null,null,null,null,null,null,null,null,null,null,null,null,null,null,null,null,null,null,null,null,null,null,null,null,null,null,null,null,null,null,null,null,null,null,null,null,null,null,null,null,null,{"$f":"SUM(AZ33:BI36)","v":0}]
[null,null,null,null,"1. Cheltuieli aferente întocmirii documentaţiei de atribuire şi multiplicării acesteia (exclusiv cele cumpărate de ofertanţi)"]
[null,null,null,null,"2. Cheltuieli cu onorariile, transportul, cazarea şi diurna membrilor desemnaţi în comisiile de evaluare"]
[null,null,null,null,"3. Anunţuri de intenţie, de participare şi de atribuire a contractelor, corespondenţă prin poştă, fax, poştă electronică în legătură cu procedurile de achiziţie publică"]
[null,null,null,null,"4. Cheltuieli aferente organizării şi derulării procedurilor de achiziţii publice"]
["3.7",null,null,null,"Cheltuieli pentru consultanţă",null,null,null,null,null,null,null,null,null,null,null,null,null,null,null,null,null,null,null,null,null,null,null,null,null,null,null,null,null,null,null,null,null,null,null,null,null,{"$f":"SUM(AQ38:AY39)","v":0},null,null,null,null,null,null,null,null,{"$f":"SUM(AZ38:BI39)","v":0}]
[null,null,null,null,"3.7.1 Managementul de proiect pentru obiectivul de investiţii"]
[null,null,null,null,"3.7.2 Auditul financiar"]
["3.8",null,null,null,"Cheltuieli pentru asistenţa tehnică",null,null,null,null,null,null,null,null,null,null,null,null,null,null,null,null,null,null,null,null,null,null,null,null,null,null,null,null,null,null,null,null,null,null,null,null,null,{"$f":"AQ41+AQ44","v":0},null,null,null,null,null,null,null,null,{"$f":"AZ41+AZ44","v":0}]
[null,null,null,null,"3.8.1. Asistenţă tehnică din partea proiectantului",null,null,null,null,null,null,null,null,null,null,null,null,null,null,null,null,null,null,null,null,null,null,null,null,null,null,null,null,null,null,null,null,null,null,null,null,null,{"$f":"SUM(AQ42:AY43)","v":0},null,null,null,null,null,null,null,null,{"$f":"SUM(AZ42:BI43)","v":0}]
[null,null,null,null,"1.1. pe perioada de execuţie a lucrărilor"]
[null,null,null,null,"1.2. pentru participarea proiectantului la fazele incluse în programul de control al lucrărilor de execuţie, avizat de către Inspectoratul de Stat în Construcţii"]
[null,null,null,null,"3.8.2 Dirigenţie de şantier, asigurată de personal tehnic de specialitate, autorizat"]
[null,null,null,null,"Total valoare fără TVA",null,null,null,null,null,null,null,null,null,null,null,null,null,null,null,null,null,null,null,null,null,null,null,null,null,null,null,null,null,null,null,null,null,null,null,null,null,{"$f":"AQ9+AQ13+AQ23+AQ24+AQ25+AQ32+AQ37+AQ40","v":0},null,null,null,null,null,null,null,null,{"$f":"AZ9+AZ13+AZ23+AZ24+AZ25+AZ32+AZ37+AZ40","v":0}]
[null,null,null,null,"Valoare TVA (aferentă cheltuielilor eligibile şi neeligibile)"]
["TOTAL DEVIZ FINANCIAR 1 (inclusiv TVA)",null,null,null,null,null,null,null,null,null,null,null,null,null,null,null,null,null,null,null,null,null,null,null,null,null,null,null,null,null,null,null,null,null,null,null,null,null,null,null,null,null,{"$f":"AQ45+AZ45+AQ46+AZ46","v":0}]
[]
[null,null,"Deviz financiar- Capitolul 3 - Cheltuieli pentru proiectare şi asistenţa tehnică - EURO",null,null,null,null,null,null,null,null,null,null,null,null,null,null,null,null,null,null,null,null,null,null,null,null,null,null,null,null,null,null,null,null,null,null,null,null,null,null,null,"Anexa A1\nHG 907/2016"]
[]
[null,null,null,null,null,null,null,null,null,null,null,null,null,null,null,null,null,null,null,null,null,null,null,null,null,null,null,null,null,null,null,null,null,null,null,null,null,null,null,null,null,null,"…………..2017",null,null,null,null,null,null,null,null,"Nr.3"]
[]
[]
[]
["(Titlu deviz)"]
["Nr.crt",null,null,null,"Specificaţie",null,null,null,null,null,null,null,null,null,null,null,null,null,null,null,null,null,null,null,null,null,null,null,null,null,null,null,null,null,null,null,null,null,null,null,null,null,"Valoare eligibilă",null,null,null,null,null,null,null,null,"Valoare\nneeligibilă"]
["3.1",null,null,null,"Cheltuieli pentru studii - total din care:",null,null,null,null,null,null,null,null,null,null,null,null,null,null,null,null,null,null,null,null,null,null,null,null,null,null,null,null,null,null,null,null,null,null,null,null,null,{"$f":"SUM(AQ58:AY60)","v":0},null,null,null,null,null,null,null,null,{"$f":"SUM(AZ58:BI60)","v":0}]
[null,null,null,null,"3.1.1 Studii de teren: geotehnice, geologice, hidrologice, hidrogeotehnice, fotogrammetrice, topografice şi de stabilitate ale terenului pe care se amplasează obiectivul de investiţie"]
[null,null,null,null,"3.1.2 Raport privind impactul asupra mediului"]
[null,null,null,null,"3.1.3 Studii de specialitate necesare în funcție de specificul investiției"]
["3.2",null,null,null,"Documentaţii-suport şi cheltuieli pentru obţinerea de avize, acorduri şi autorizaţii",null,null,null,null,null,null,null,null,null,null,null,null,null,null,null,null,null,null,null,null,null,null,null,null,null,null,null,null,null,null,null,null,null,null,null,null,null,{"$f":"SUM(AQ62:AY70)","v":0},null,null,null,null,null,null,null,null,{"$f":"SUM(AZ62:BI70)","v":0}]
[null,null,null,null,"1. obţinerea/prelungirea valabilităţii ceritificatului de urbanism"]
[null,null,null,null,"2. obţinerea/prelungirea valabilităţii autorizaţiei de construire/desfiinţare"]
[null,null,null,null,"3. obţinerea avizelor şi acordurilor pentru racorduri şi branşamente la reţelele publice de alimentare cu apă, canalizare, alimentare cu gaze, alimentare cu agent termic, energie electrică, telefonie"]
[null,null,null,null,"4. obţinerea certificatului de nomenclatură stradală şi adresa"]
[null,null,null,null,"5. întocmirea documentaţiei, obţinerea numărului cadastral provizoriu şi înregistrarea terenului în cartea funciară"]
[null,null,null,null,"6. obținerea actului administrativ al autorității competente pentru protecția mediului"]
[null,null,null,null,"7. obţinerea avizului de protecție civilă"]
[null,null,null,null,"8. avizul de specialitate în cazul obiectivelor de patrimoniu"]
[null,null,null,null,"9. alte avize, acorduri şi autorizaţii"]
["3.3",null,null,null,"Cheltuieli pentru expertizarea tehnică a construcţiilor existente, a structurilor şi/sau, după caz, a proiectelor tehnice, inclusiv întocmirea de către expertul tehnic a raportului de expertiză tehnică"]
["3.4",null,null,null,"Cheltuieli pentru certificarea performanţei energetice şi auditul energetic al\nclădirilor"]
["3.5",null,null,null,"Cheltuieli pentru proiectare",null,null,null,null,null,null,null,null,null,null,null,null,null,null,null,null,null,null,null,null,null,null,null,null,null,null,null,null,null,null,null,null,null,null,null,null,null,{"$f":"SUM(AQ74:AY79)","v":0},null,null,null,null,null,null,null,null,{"$f":"SUM(AZ74:BI79)","v":0}]
[null,null,null,null,"3.5.1 Temă de proiectare"]
[null,null,null,null,"3.5.2 Studiu de prefezabilitate"]
[null,null,null,null,"3.5.3. Studiu de prefezabilitate/documentație de avizare a lucrărilor de intervenții și deviz general"]
[null,null,null,null,"3.5.4. Documentațiile tehnice necesare în vederea obținerii avizelor/ acordurilor/ autorizațiilor"]
[null,null,null,null,"3.5.5. Verificarea tehnică de calitate a proiectului tehnic și a detaliilor de execuție"]
[null,null,null,null,"3.5.6. Proiect tehnic și detalii de execuție"]
["3.6",null,null,null,"Cheltuieli aferente organizării şi derulării procedurilor de achiziţii publice",null,null,null,null,null,null,null,null,null,null,null,null,null,null,null,null,null,null,null,null,null,null,null,null,null,null,null,null,null,null,null,null,null,null,null,null,null,null,null,null,null,null,null,null,null,null,{"$f":"SUM(AZ81:BI84)","v":0}]
[null,null,null,null,"1. Cheltuieli aferente întocmirii documentaţiei de atribuire şi multiplicării acesteia (exclusiv cele cumpărate de ofertanţi)"]
[null,null,null,null,"2. Cheltuieli cu onorariile, transportul, cazarea şi diurna membrilor desemnaţi în comisiile de evaluare"]
[null,null,null,null,"3. Anunţuri de intenţie, de participare şi de atribuire a contractelor, corespondenţă prin poştă, fax, poştă electronică în legătură cu procedurile de achiziţie publică"]
[null,null,null,null,"4. Cheltuieli aferente organizării şi derulării procedurilor de achiziţii publice"]
["3.7",null,null,null,"Cheltuieli pentru consultanţă",null,null,null,null,null,null,null,null,null,null,null,null,null,null,null,null,null,null,null,null,null,null,null,null,null,null,null,null,null,null,null,null,null,null,null,null,null,{"$f":"SUM(AQ86:AY87)","v":0},null,null,null,null,null,null,null,null,{"$f":"SUM(AZ86:BI87)","v":0}]
[null,null,null,null,"3.7.1 Managementul de proiect pentru obiectivul de investiţii"]
[null,null,null,null,"3.7.2 Auditul financiar"]
["3.8",null,null,null,"Cheltuieli pentru asistenţa tehnică",null,null,null,null,null,null,null,null,null,null,null,null,null,null,null,null,null,null,null,null,null,null,null,null,null,null,null,null,null,null,null,null,null,null,null,null,null,{"$f":"AQ89+AQ92","v":0},null,null,null,null,null,null,null,null,{"$f":"AZ89+AZ92","v":0}]
[null,null,null,null,"3.8.1. Asistenţă tehnică din partea proiectantului",null,null,null,null,null,null,null,null,null,null,null,null,null,null,null,null,null,null,null,null,null,null,null,null,null,null,null,null,null,null,null,null,null,null,null,null,null,{"$f":"SUM(AQ90:AY91)","v":0},null,null,null,null,null,null,null,null,{"$f":"SUM(AZ90:BI91)","v":0}]
[null,null,null,null,"1.1. pe perioada de execuţie a lucrărilor"]
[null,null,null,null,"1.2. pentru participarea proiectantului la fazele incluse în programul de control al lucrărilor de execuţie, avizat de către Inspectoratul de Stat în Construcţii"]
[null,null,null,null,"3.8.2 Dirigenţie de şantier, asigurată de personal tehnic de specialitate, autorizat"]
[null,null,null,null,"Total valoare fără TVA",null,null,null,null,null,null,null,null,null,null,null,null,null,null,null,null,null,null,null,null,null,null,null,null,null,null,null,null,null,null,null,null,null,null,null,null,null,{"$f":"AQ57+AQ61+AQ71+AQ72+AQ73+AQ80+AQ85+AQ88","v":0},null,null,null,null,null,null,null,null,{"$f":"AZ57+AZ61+AZ71+AZ72+AZ73+AZ80+AZ85+AZ88","v":0}]
[null,null,null,null,"Valoare TVA (aferentă cheltuielilor eligibile şi neeligibile)"]
["TOTAL DEVIZ FINANCIAR 1 (inclusiv TVA)",null,null,null,null,null,null,null,null,null,null,null,null,null,null,null,null,null,null,null,null,null,null,null,null,null,null,null,null,null,null,null,null,null,null,null,null,null,null,null,null,null,{"$f":"AQ93+AZ93+AQ94+AZ94","v":0}]

{"sheet":"Anexa 2","index":2,"n_rows":58,"n_cols":52,"rows_kept":58,"cut":false,"hidden":false,"merged":[[10,51,10,60],[11,0,11,3],[11,4,11,41],[11,42,11,50],[11,51,11,60],[8,0,8,3],[8,4,8,41],[19,0,19,3],[19,4,19,41],[19,42,19,50],[19,51,19,60],[18,51,18,60],[20,0,20,60],[16,0,16,3],[16,4,16,41],[16,42,16,50],[16,51,16,60],[17,0,17,60],[18,0,18,3],[18,4,18,41],[18,42,18,50],[21,0,21,3],[21,4,21,41],[21,42,21,50],[21,51,21,60],[22,0,22,3],[22,4,22,41],[22,42,22,50],[22,51,22,60],[23,42,23,50],[23,51,23,60],[23,0,23,3],[23,4,23,41],[38,0,38,41],[38,42,38,50],[38,51,38,60],[39,0,39,41],[39,42,39,50],[39,51,39,60],[24,42,24,50],[24,51,24,60],[31,7,31,41],[32,7,32,41],[24,0,24,3],[24,4,24,41],[25,0,25,3],[25,4,25,41],[25,42,25,50],[25,51,25,60],[26,0,26,41],[26,42,26,50],[26,51,26,60],[27,0,27,41],[27,42,27,50],[27,51,27,60],[28,0,28,41],[28,42,28,60],[40,42,40,50],[40,51,40,60],[41,42,41,50],[41,51,41,60],[42,0,42,3],[42,4,42,41],[42,42,42,50],[42,51,42,60],[40,0,40,3],[40,4,40,41],[41,0,41,3],[41,4,41,41],[48,4,48,41],[48,42,48,50],[48,51,48,60],[46,0,46,60],[43,0,43,3],[43,4,43,41],[43,42,43,50],[43,51,43,60],[44,0,44,3],[44,4,44,41],[44,42,44,50],[44,51,44,60],[45,0,45,3],[45,4,45,41],[45,42,45,50],[45,51,45,60],[47,0,47,3],[47,4,47,41],[47,42,47,50],[47,51,47,60],[48,0,48,3],[57,0,57,41],[57,42,57,60],[52,0,52,3],[52,4,52,41],[52,42,52,50],[52,51,52,60],[53,0,53,3],[53,4,53,41],[53,42,53,50],[53,51,53,60],[54,0,54,3],[54,4,54,41],[54,42,54,50],[54,51,54,60],[55,42,55,50],[55,51,55,60],[56,42,56,50],[56,51,56,60],[55,0,55,41],[56,0,56,41],[50,0,50,3],[50,4,50,41],[50,42,50,50],[50,51,50,60],[49,0,49,60],[51,0,51,3],[51,4,51,41],[51,42,51,50],[51,51,51,60],[6,0,6,60],[7,0,7,60],[8,42,8,60],[9,0,9,41],[10,0,10,41],[15,0,15,3],[15,4,15,41],[15,42,15,50],[15,51,15,60],[12,0,12,3],[12,4,12,41],[12,42,12,50],[12,51,12,60],[13,0,13,3],[13,4,13,41],[13,42,13,50],[13,51,13,60],[14,0,14,3],[14,4,14,41],[14,42,14,50],[14,51,14,60],[9,42,9,50],[9,51,9,60],[10,42,10,50],[0,7,0,41],[1,7,1,41],[1,42,2,60],[2,7,2,41],[3,7,3,41],[3,42,3,50],[3,51,3,60],[4,7,4,60],[5,0,5,60],[29,7,29,41],[30,7,30,41],[30,42,31,60],[32,42,32,50],[32,51,32,60],[33,7,33,60],[34,0,34,60],[35,0,35,60],[37,0,37,3],[37,4,37,41],[37,42,37,60],[36,0,36,60]]}
[]
[null,null,null,null,null,null,null,null,null,null,null,null,null,null,null,null,null,null,null,null,null,null,null,null,null,null,null,null,null,null,null,null,null,null,null,null,null,null,null,null,null,null,"Anexa A2\nHG 907/2016"]
[null,null,null,null,null,null,null,"DEVIZ PE OBIECT *"]
[]
[]
[]
[]
["(Descriere obiect de construcţie)"]
["Nr. crt.",null,null,null,"Denumire",null,null,null,null,null,null,null,null,null,null,null,null,null,null,null,null,null,null,null,null,null,null,null,null,null,null,null,null,null,null,null,null,null,null,null,null,null,"Valoarea pe categorii de lucrări, fară TVA - EURO"]
["Cap. 4 + Cheltuieli pentru investiţia de bază",null,null,null,null,null,null,null,null,null,null,null,null,null,null,null,null,null,null,null,null,null,null,null,null,null,null,null,null,null,null,null,null,null,null,null,null,null,null,null,null,null,"Valoare eligibilă",null,null,null,null,null,null,null,null,"Valoare\nneeligibilă"]
["I - LUCRĂRI DE CONSTRUCŢII ŞI INSTALAŢII"]
["4.1",null,null,null,"Construcții și instalații"]
[null,null,null,null,"4.1.1 Terasamente, sistematizare pe verticală și amenajări exterioare"]
[null,null,null,null,"4.1.2 Rezistență"]
[null,null,null,null,"4.1.3 Arhitectură"]
[null,null,null,null,"4.1.4 Instalații"]
[null,null,null,null,"TOTAL I ( fără TVA)",null,null,null,null,null,null,null,null,null,null,null,null,null,null,null,null,null,null,null,null,null,null,null,null,null,null,null,null,null,null,null,null,null,null,null,null,null,{"$f":"SUM(AQ13:AY16)","v":0},null,null,null,null,null,null,null,null,{"$f":"SUM(AZ13:BI16)","v":0}]
["II - MONTAJ"]
["4.2",null,null,null,"Montaj utilaje, echipamente tehnologice și funcționale"]
[null,null,null,null,"TOTAL II ( fără TVA)",null,null,null,null,null,null,null,null,null,null,null,null,null,null,null,null,null,null,null,null,null,null,null,null,null,null,null,null,null,null,null,null,null,null,null,null,null,{"$f":"SUM(AQ19)","v":0},null,null,null,null,null,null,null,null,{"$f":"SUM(AZ19)","v":0}]
["III - PROCURARE"]
["4.3",null,null,null,"Utilaje, echipamente tehnologice și funcționale care necesită montaj"]
["4.4",null,null,null,"Utilaje, echipamente tehnologice și funcționale care nu necesită montaj și echipamente de transport"]
["4.5",null,null,null,"Dotări"]
["4.6",null,null,null,"Active necorporale"]
[null,null,null,null,"TOTAL III ( fără TVA)",null,null,null,null,null,null,null,null,null,null,null,null,null,null,null,null,null,null,null,null,null,null,null,null,null,null,null,null,null,null,null,null,null,null,null,null,null,{"$f":"SUM(AQ22:AY25)","v":0},null,null,null,null,null,null,null,null,{"$f":"SUM(AZ22:BI25)","v":0}]
["TOTAL ( TOTAL I + TOTAL II +TOTAL III) fără TVA",null,null,null,null,null,null,null,null,null,null,null,null,null,null,null,null,null,null,null,null,null,null,null,null,null,null,null,null,null,null,null,null,null,null,null,null,null,null,null,null,null,{"$f":"AQ26+AQ20+AQ17","v":0},null,null,null,null,null,null,null,null,{"$f":"AZ26+AZ20+AZ17","v":0}]
["TVA aferent cheltuielilor eligibile şi neeligibile"]
["TOTAL DEVIZ PE OBIECT (inclusiv TVA)",null,null,null,null,null,null,null,null,null,null,null,null,null,null,null,null,null,null,null,null,null,null,null,null,null,null,null,null,null,null,null,null,null,null,null,null,null,null,null,null,null,{"$f":"AQ27+AZ27+AQ28+AZ28","v":0}]
[]
[null,null,null,null,null,null,null,"DEVIZ PE OBIECT *",null,null,null,null,null,null,null,null,null,null,null,null,null,null,null,null,null,null,null,null,null,null,null,null,null,null,null,null,null,null,null,null,null,null,"Anexa A2\nHG 907/2016"]
[]
[]
[]
[]
[]
["(Descriere obiect de construcţie)"]
["Nr. crt.",null,null,null,"Denumire",null,null,null,null,null,null,null,null,null,null,null,null,null,null,null,null,null,null,null,null,null,null,null,null,null,null,null,null,null,null,null,null,null,null,null,null,null,"Valoarea pe categorii de lucrări, fară TVA - EURO"]
["Cap. 4 + Cheltuieli pentru investiţia de bază",null,null,null,null,null,null,null,null,null,null,null,null,null,null,null,null,null,null,null,null,null,null,null,null,null,null,null,null,null,null,null,null,null,null,null,null,null,null,null,null,null,"Valoare eligibilă",null,null,null,null,null,null,null,null,"Valoare\nneeligibilă"]
["I - LUCRĂRI DE CONSTRUCŢII ŞI INSTALAŢII"]
["4.1",null,null,null,"Construcții și instalații"]
[null,null,null,null,"4.1.1 Terasamente, sistematizare pe verticală și amenajări exterioare"]
[null,null,null,null,"4.1.2 Rezistență"]
[null,null,null,null,"4.1.3 Arhitectură"]
[null,null,null,null,"4.1.4 Instalații"]
[null,null,null,null,"TOTAL I ( fără TVA)",null,null,null,null,null,null,null,null,null,null,null,null,null,null,null,null,null,null,null,null,null,null,null,null,null,null,null,null,null,null,null,null,null,null,null,null,null,{"$f":"SUM(AQ42:AY45)","v":0},null,null,null,null,null,null,null,null,{"$f":"SUM(AZ42:BI45)","v":0}]
["II - MONTAJ"]
["4.2",null,null,null,"Montaj utilaje, echipamente tehnologice și funcționale"]
[null,null,null,null,"TOTAL II ( fără TVA)",null,null,null,null,null,null,null,null,null,null,null,null,null,null,null,null,null,null,null,null,null,null,null,null,null,null,null,null,null,null,null,null,null,null,null,null,null,{"$f":"SUM(AQ48)","v":0},null,null,null,null,null,null,null,null,{"$f":"SUM(AZ48)","v":0}]
["III - PROCURARE"]
["4.3",null,null,null,"Utilaje, echipamente tehnologice și funcționale care necesită montaj"]
["4.4",null,null,null,"Utilaje, echipamente tehnologice și funcționale care nu necesită montaj și echipamente de transport"]
["4.5",null,null,null,"Dotări"]
["4.6",null,null,null,"Active necorporale"]
[null,null,null,null,"TOTAL III ( fără TVA)",null,null,null,null,null,null,null,null,null,null,null,null,null,null,null,null,null,null,null,null,null,null,null,null,null,null,null,null,null,null,null,null,null,null,null,null,null,{"$f":"SUM(AQ51:AY54)","v":0},null,null,null,null,null,null,null,null,{"$f":"SUM(AZ51:BI54)","v":0}]
["TOTAL ( TOTAL I + TOTAL II +TOTAL III) fără TVA",null,null,null,null,null,null,null,null,null,null,null,null,null,null,null,null,null,null,null,null,null,null,null,null,null,null,null,null,null,null,null,null,null,null,null,null,null,null,null,null,null,{"$f":"AQ55+AQ49+AQ46","v":0},null,null,null,null,null,null,null,null,{"$f":"AZ55+AZ49+AZ46","v":0}]
["TVA aferent cheltuielilor eligibile şi neeligibile"]
["TOTAL DEVIZ PE OBIECT (inclusiv TVA)",null,null,null,null,null,null,null,null,null,null,null,null,null,null,null,null,null,null,null,null,null,null,null,null,null,null,null,null,null,null,null,null,null,null,null,null,null,null,null,null,null,{"$f":"AQ56+AZ56+AQ57+AZ57","v":0}]

{"sheet":"Anexa 3","index":3,"n_rows":150,"n_cols":52,"rows_kept":150,"cut":false,"hidden":false,"merged":[[1,7,1,41],[1,42,2,60],[2,7,2,41],[3,0,3,60],[4,0,4,60],[5,0,5,60],[6,0,6,3],[6,4,6,41],[6,42,6,50],[6,51,6,60],[7,0,7,3],[7,4,7,41],[7,42,7,50],[7,51,7,60],[8,0,8,3],[8,4,8,41],[8,42,8,50],[8,51,8,60],[9,0,9,3],[9,4,9,41],[9,42,9,50],[9,51,9,60],[10,0,10,3],[10,4,10,41],[10,42,10,50],[10,51,10,60],[11,0,11,3],[11,4,11,41],[11,42,11,50],[11,51,11,60],[12,0,12,3],[12,4,12,41],[12,42,12,50],[12,51,12,60],[13,0,13,3],[13,4,13,41],[13,42,13,50],[13,51,13,60],[14,0,14,3],[14,4,14,41],[14,42,14,50],[14,51,14,60],[15,0,15,3],[15,4,15,41],[15,42,15,50],[15,51,15,60],[16,0,16,3],[16,4,16,41],[16,42,16,50],[16,51,16,60],[17,0,17,3],[17,4,17,41],[17,42,17,50],[17,51,17,60],[18,0,18,41],[18,42,18,60],[19,0,19,3],[19,4,19,41],[19,42,19,50],[19,51,19,60],[20,0,20,60],[21,0,21,3],[21,4,21,41],[21,42,21,50],[21,51,21,60],[22,0,22,60],[23,0,23,3],[23,4,23,41],[23,42,23,50],[23,51,23,60],[24,0,24,3],[24,4,24,41],[24,42,24,50],[24,51,24,60],[25,0,25,3],[25,4,25,41],[25,42,25,50],[25,51,25,60],[26,0,26,3],[26,4,26,41],[26,42,26,50],[26,51,26,60],[27,0,27,3],[27,4,27,41],[27,42,27,50],[27,51,27,60],[28,0,28,3],[28,4,28,41],[28,42,28,50],[28,51,28,60],[29,0,29,3],[29,4,29,41],[29,42,29,50],[29,51,29,60],[30,0,30,3],[30,4,30,41],[30,42,30,50],[30,51,30,60],[31,0,31,3],[31,4,31,41],[31,42,31,50],[31,51,31,60],[32,0,32,3],[32,4,32,41],[32,42,32,50],[32,51,32,60],[33,0,33,3],[33,4,33,41],[33,42,33,50],[33,51,33,60],[34,0,34,3],[34,4,34,41],[34,42,34,50],[34,51,34,60],[35,0,35,3],[35,4,35,41],[35,42,35,50],[35,51,35,60],[36,0,36,3],[36,4,36,41],[36,42,36,60],[39,7,39,41],[39,42,39,60],[40,0,40,60],[41,0,41,60],[42,0,42,60],[43,0,43,60],[44,0,44,3],[44,4,44,41],[44,42,44,50],[44,51,44,60],[45,0,45,3],[45,4,45,41],[45,42,45,50],[45,51,45,60],[46,0,46,3],[46,4,46,41],[46,42,46,50],[46,51,46,60],[47,0,47,3],[47,4,47,41],[47,42,47,50],[47,51,47,60],[48,0,48,3],[48,4,48,41],[48,42,48,50],[48,51,48,60],[49,0,49,3],[49,4,49,41],[49,42,49,50],[49,51,49,60],[50,0,50,3],[50,4,50,41],[50,42,50,50],[50,51,50,60],[51,0,51,3],[51,4,51,41],[51,42,51,50],[51,51,51,60],[52,0,52,3],[52,4,52,41],[52,42,52,50],[52,51,52,60],[53,0,53,3],[53,4,53,41],[53,42,53,50],[53,51,53,60],[54,0,54,3],[54,4,54,41],[54,42,54,50],[54,51,54,60],[55,0,55,3],[55,4,55,41],[55,42,55,50],[55,51,55,60],[56,0,56,41],[56,42,56,60],[57,0,57,3],[57,4,57,41],[57,42,57,50],[57,51,57,60],[58,0,58,60],[59,0,59,3],[59,4,59,41],[59,42,59,50],[59,51,59,60],[60,0,60,60],[61,0,61,3],[61,4,61,41],[61,42,61,50],[61,51,61,60],[62,0,62,3],[62,4,62,41],[62,42,62,50],[62,51,62,60],[63,0,63,3],[63,4,63,41],[63,42,63,50],[63,51,63,60],[64,0,64,3],[64,4,64,41],[64,42,64,50],[64,51,64,60],[65,0,65,3],[65,4,65,41],[65,42,65,50],[65,51,65,60],[66,0,66,3],[66,4,66,41],[66,42,66,50],[66,51,66,60],[67,0,67,3],[67,4,67,41],[67,42,67,50],[67,51,67,60],[68,0,68,3],[68,4,68,41],[68,42,68,50],[68,51,68,60],[69,0,69,3],[69,4,69,41],[69,42,69,50],[69,51,69,60],[70,0,70,3],[70,4,70,41],[70,42,70,50],[70,51,70,60],[71,0,71,3],[71,4,71,41],[71,42,71,50],[71,51,71,60],[76,7,76,41],[76,42,77,60],[77,7,77,41],[78,0,78,60],[72,0,72,3],[72,4,72,41],[72,42,72,50],[72,51,72,60],[73,0,73,3],[73,4,73,41],[73,42,73,50],[73,51,73,60],[74,0,74,3],[74,4,74,41],[74,42,74,60],[79,0,79,60],[80,0,80,60],[81,0,81,60],[82,0,82,3],[82,4,82,41],[82,42,82,50],[82,51,82,60],[83,0,83,3],[83,4,83,41],[83,42,83,50],[83,51,83,60],[84,0,84,3],[84,4,84,41],[84,42,84,50],[84,51,84,60],[85,0,85,3],[85,4,85,41],[85,42,85,50],[85,51,85,60],[86,0,86,3],[86,4,86,41],[86,42,86,50],[86,51,86,60],[87,0,87,3],[87,4,87,41],[87,42,87,50],[87,51,87,60],[88,0,88,3],[88,4,88,41],[88,42,88,50],[88,51,88,60],[89,0,89,3],[89,4,89,41],[89,42,89,50],[89,51,89,60],[90,0,90,3],[90,4,90,41],[90,42,90,50],[90,51,90,60],[91,0,91,3],[91,4,91,41],[91,42,91,50],[91,51,91,60],[92,0,92,3],[92,4,92,41],[92,42,92,50],[92,51,92,60],[93,0,93,3],[93,4,93,41],[93,42,93,50],[93,51,93,60],[94,0,94,41],[94,42,94,60],[95,0,95,3],[95,4,95,41],[95,42,95,50],[95,51,95,60],[96,0,96,60],[97,0,97,3],[97,4,97,41],[97,42,97,50],[97,51,97,60],[98,0,98,60],[99,0,99,3],[99,4,99,41],[99,42,99,50],[99,51,99,60],[100,0,100,3],[100,4,100,41],[100,42,100,50],[100,51,100,60],[101,0,101,3],[101,4,101,41],[101,42,101,50],[101,51,101,60],[102,0,102,3],[102,4,102,41],[102,42,102,50],[102,51,102,60],[103,0,103,3],[103,4,103,41],[103,42,103,50],[103,51,103,60],[104,0,104,3],[104,4,104,41],[104,42,104,50],[104,51,104,60],[105,0,105,3],[105,4,105,41],[105,42,105,50],[105,51,105,60],[106,0,106,3],[106,4,106,41],[106,42,106,50],[106,51,106,60],[107,0,107,3],[107,4,107,41],[107,42,107,50],[107,51,107,60],[108,0,108,3],[108,4,108,41],[108,42,108,50],[108,51,108,60],[109,0,109,3],[109,4,109,41],[109,42,109,50],[109,51,109,60],[110,0,110,3],[110,4,110,41],[110,42,110,50],[110,51,110,60],[111,0,111,3],[111,4,111,41],[111,42,111,50],[111,51,111,60],[112,0,112,3],[112,4,112,41],[112,42,112,60],[114,7,114,41],[114,42,115,60],[115,7,115,41],[116,0,116,60],[117,0,117,60],[118,0,118,60],[119,0,119,3],[119,4,119,41],[119,42,119,50],[119,51,119,60],[120,0,120,3],[120,4,120,41],[120,42,120,50],[120,51,120,60],[121,0,121,3],[121,4,121,41],[121,42,121,50],[121,51,121,60],[122,0,122,3],[122,4,122,41],[122,42,122,50],[122,51,122,60],[123,0,123,3],[123,4,123,41],[123,42,123,50],[123,51,123,60],[124,0,124,3],[124,4,124,41],[124,42,124,50],[124,51,124,60],[125,0,125,3],[125,4,125,41],[125,42,125,50],[125,51,125,60],[126,0,126,3],[126,4,126,41],[126,42,126,50],[126,51,126,60],[127,0,127,3],[127,4,127,41],[127,42,127,50],[127,51,127,60],[128,0,128,3],[128,4,128,41],[128,42,128,50],[128,51,128,60],[129,0,129,3],[129,4,129,41],[129,42,129,50],[129,51,129,60],[130,0,130,3],[130,4,130,41],[130,42,130,50],[130,51,130,60],[131,0,131,41],[131,42,131,60],[132,0,132,3],[132,4,132,41],[132,42,132,50],[132,51,132,60],[133,0,133,60],[134,0,134,3],[134,4,134,41],[134,42,134,50],[134,51,134,60],[135,0,135,60],[136,0,136,3],[136,4,136,41],[136,42,136,50],[136,51,136,60],[137,0,137,3],[137,4,137,41],[137,42,137,50],[137,51,137,60],[138,0,138,3],[138,4,138,41],[138,42,138,50],[138,51,138,60],[139,0,139,3],[139,4,139,41],[139,42,139,50],[139,51,139,60],[140,0,140,3],[140,4,140,41],[140,42,140,50],[140,51,140,60],[141,0,141,3],[141,4,141,41],[141,42,141,50],[141,51,141,60],[142,0,142,3],[142,4,142,41],[142,42,142,50],[142,51,142,60],[143,0,143,3],[143,4,143,41],[143,42,143,50],[143,51,143,60],[144,0,144,3],[144,4,144,41],[144,42,144,50],[144,51,144,60],[145,0,145,3],[145,4,145,41],[145,42,145,50],[145,51,145,60],[146,0,146,3],[146,4,146,41],[146,42,146,50],[146,51,146,60],[147,0,147,3],[147,4,147,41],[147,42,147,50],[147,51,147,60],[148,0,148,3],[148,4,148,41],[148,42,148,50],[148,51,148,60],[149,0,149,3],[149,4,149,41],[149,42,149,60]]}
[]
[null,null,null,null,null,null,null,null,null,null,null,null,null,null,null,null,null,null,null,null,null,null,null,null,null,null,null,null,null,null,null,null,null,null,null,null,null,null,null,null,null,null,"Anexa A3\nHG 907/2016"]
[]
[]
["(Titlu deviz)"]
["Deviz capitolul 2- Cheltuieli pentru asigurarea utilităţilor necesare obiectivului - EURO"]
["Nr.crt",null,null,null,"Specificaţie",null,null,null,null,null,null,null,null,null,null,null,null,null,null,null,null,null,null,null,null,null,null,null,null,null,null,null,null,null,null,null,null,null,null,null,null,null,"Valoare eligibilă",null,null,null,null,null,null,null,null,"Valoare\nneeligibilă"]
[1,null,null,null,"Alimentare cu apă"]
[2,null,null,null,"Canalizare"]
[3,null,null,null,"Alimentare cu gaze naturale"]
[4,null,null,null,"Alimentare cu agent termic"]
[5,null,null,null,"Alimentare cu energie electrică"]
[6,null,null,null,"Telecomunicaţii (telefonie, radio-tv,etc)"]
[7,null,null,null,"Drumuri de acces"]
[8,null,null,null,"Căi ferate industriale"]
[9,null,null,null,"Alte utilități"]
[null,null,null,null,"Total valoare fără TVA",null,null,null,null,null,null,null,null,null,null,null,null,null,null,null,null,null,null,null,null,null,null,null,null,null,null,null,null,null,null,null,null,null,null,null,null,null,{"$f":"SUM(AQ8:AY16)","v":0},null,null,null,null,null,null,null,null,{"$f":"SUM(AZ8:BI16)","v":0}]
[null,null,null,null,"Valoare TVA aferentă cheltuielilor eligibile şi neeligibile"]
["TOTAL DEVIZ CAPITOLUL 2 (inclusiv TVA)",null,null,null,null,null,null,null,null,null,null,null,null,null,null,null,null,null,null,null,null,null,null,null,null,null,null,null,null,null,null,null,null,null,null,null,null,null,null,null,null,null,{"$f":"AQ17+AZ17+AQ18+AZ18","v":0}]
[]
[" Deviz capitolul 5 - Alte cheltuieli - EURO"]
["Nr.crt",null,null,null,"Specificaţie",null,null,null,null,null,null,null,null,null,null,null,null,null,null,null,null,null,null,null,null,null,null,null,null,null,null,null,null,null,null,null,null,null,null,null,null,null,"Valoare eligibilă",null,null,null,null,null,null,null,null,"Valoare\nneeligibilă"]
[]
["5.1 ",null,null,null,"Organizare de şantier",null,null,null,null,null,null,null,null,null,null,null,null,null,null,null,null,null,null,null,null,null,null,null,null,null,null,null,null,null,null,null,null,null,null,null,null,null,{"$f":"SUM(AQ25:AY26)","v":0},null,null,null,null,null,null,null,null,{"$f":"SUM(AZ25:BI26)","v":0}]
[null,null,null,null,"5.1.1 Lucrări de construcţii şi instalaţii aferente organizării de şantier"]
[null,null,null,null,"5.1.2 Cheltuieli conexe organizării de şantier"]
["5.2",null,null,null,"Comisioane, cote, taxe, costul creditului",null,null,null,null,null,null,null,null,null,null,null,null,null,null,null,null,null,null,null,null,null,null,null,null,null,null,null,null,null,null,null,null,null,null,null,null,null,{"$f":"SUM(AQ29:AY32)","v":0},null,null,null,null,null,null,null,null,{"$f":"SUM(AZ28:BI32)","v":0}]
[null,null,null,null,"5.2.1. Comisioanele şi dobânzile aferente creditului băncii finanţatoare"]
[null,null,null,null,"5.2.2. Cota aferentă ISC pentru controlul calităţii lucrărilor de construcţii"]
[null,null,null,null,"5.2.3. Cota aferentă ISC pentru controlul statului în amenajarea teritoriului, urbanism şi pentru autorizarea lucrărilor de construcţii"]
[null,null,null,null,"5.2.4. Cota aferentă Casei Sociale a Constructorilor - CSC"]
[null,null,null,null,"5.2.5. Taxe pentru acorduri, avize conforme şi autorizaţia de construire/desfiinţare"]
["5.3",null,null,null," Cheltuieli diverse si neprevazute"]
["5.4",null,null,null," Cheltuieli pentru informare și publicitate"]
[null,null,null,null,"TOTAL DEVIZ CAPITOLUL 5",null,null,null,null,null,null,null,null,null,null,null,null,null,null,null,null,null,null,null,null,null,null,null,null,null,null,null,null,null,null,null,null,null,null,null,null,null,{"$f":"AQ24+AQ27+AQ33","v":0},null,null,null,null,null,null,null,null,{"$f":"AZ24+AZ27+AZ33+AZ34","v":0}]
[null,null,null,null,"VALOARE TVA aferentă cheltuielilor eligibile şi neeligibile"]
[null,null,null,null,"TOTAL DEVIZ CAPITOLUL 5 ( inclusiv TVA)",null,null,null,null,null,null,null,null,null,null,null,null,null,null,null,null,null,null,null,null,null,null,null,null,null,null,null,null,null,null,null,null,null,null,null,null,null,{"$f":"AQ35+AZ35+AQ36+AZ36","v":0}]
[]
[]
[null,null,null,null,null,null,null,null,null,null,null,null,null,null,null,null,null,null,null,null,null,null,null,null,null,null,null,null,null,null,null,null,null,null,null,null,null,null,null,null,null,null,"Anexa A3\nHG 907/2016"]
[]
[]
["(Titlu deviz)"]
["Deviz capitolul 2- Cheltuieli pentru asigurarea utilităţilor necesare obiectivului - EURO"]
["Nr.crt",null,null,null,"Specificaţie",null,null,null,null,null,null,null,null,null,null,null,null,null,null,null,null,null,null,null,null,null,null,null,null,null,null,null,null,null,null,null,null,null,null,null,null,null,"Valoare eligibilă",null,null,null,null,null,null,null,null,"Valoare\nneeligibilă"]
[1,null,null,null,"Alimentare cu apă"]
[2,null,null,null,"Canalizare"]
[3,null,null,null,"Alimentare cu gaze naturale"]
[4,null,null,null,"Alimentare cu agent termic"]
[5,null,null,null,"Alimentare cu energie electrică"]
[6,null,null,null,"Telecomunicaţii (telefonie, radio-tv,etc)"]
[7,null,null,null,"Drumuri de acces"]
[8,null,null,null,"Căi ferate industriale"]
[9,null,null,null,"Alte utilități"]
[null,null,null,null,"Total valoare fără TVA",null,null,null,null,null,null,null,null,null,null,null,null,null,null,null,null,null,null,null,null,null,null,null,null,null,null,null,null,null,null,null,null,null,null,null,null,null,{"$f":"SUM(AQ46:AY54)","v":0},null,null,null,null,null,null,null,null,{"$f":"SUM(AZ46:BI54)","v":0}]
[null,null,null,null,"Valoare TVA aferentă cheltuielilor eligibile şi neeligibile"]
["TOTAL DEVIZ CAPITOLUL 2 (inclusiv TVA)",null,null,null,null,null,null,null,null,null,null,null,null,null,null,null,null,null,null,null,null,null,null,null,null,null,null,null,null,null,null,null,null,null,null,null,null,null,null,null,null,null,{"$f":"AQ55+AZ55+AQ56+AZ56","v":0}]
[]
[" Deviz capitolul 5 - Alte cheltuieli - EURO"]
["Nr.crt",null,null,null,"Specificaţie",null,null,null,null,null,null,null,null,null,null,null,null,null,null,null,null,null,null,null,null,null,null,null,null,null,null,null,null,null,null,null,null,null,null,null,null,null,"Valoare eligibilă",null,null,null,null,null,null,null,null,"Valoare\nneeligibilă"]
[]
["5.1 ",null,null,null,"Organizare de şantier",null,null,null,null,null,null,null,null,null,null,null,null,null,null,null,null,null,null,null,null,null,null,null,null,null,null,null,null,null,null,null,null,null,null,null,null,null,{"$f":"SUM(AQ63:AY64)","v":0},null,null,null,null,null,null,null,null,{"$f":"SUM(AZ63:BI64)","v":0}]
[null,null,null,null,"5.1.1 Lucrări de construcţii şi instalaţii aferente organizării de şantier"]
[null,null,null,null,"5.1.2 Cheltuieli conexe organizării de şantier"]
["5.2",null,null,null,"Comisioane, cote, taxe, costul creditului",null,null,null,null,null,null,null,null,null,null,null,null,null,null,null,null,null,null,null,null,null,null,null,null,null,null,null,null,null,null,null,null,null,null,null,null,null,{"$f":"SUM(AQ67:AY70)","v":0},null,null,null,null,null,null,null,null,{"$f":"SUM(AZ66:BI70)","v":0}]
[null,null,null,null,"5.2.1. Comisioanele şi dobânzile aferente creditului băncii finanţatoare"]
[null,null,null,null,"5.2.2. Cota aferentă ISC pentru controlul calităţii lucrărilor de construcţii"]
[null,null,null,null,"5.2.3. Cota aferentă ISC pentru controlul statului în amenajarea teritoriului, urbanism şi pentru autorizarea lucrărilor de construcţii"]
[null,null,null,null,"5.2.4. Cota aferentă Casei Sociale a Constructorilor - CSC"]
[null,null,null,null,"5.2.5. Taxe pentru acorduri, avize conforme şi autorizaţia de construire/desfiinţare"]
["5.3",null,null,null," Cheltuieli diverse si neprevazute"]
["5.4",null,null,null," Cheltuieli pentru informare și publicitate"]
[null,null,null,null,"TOTAL DEVIZ CAPITOLUL 5",null,null,null,null,null,null,null,null,null,null,null,null,null,null,null,null,null,null,null,null,null,null,null,null,null,null,null,null,null,null,null,null,null,null,null,null,null,{"$f":"AQ62+AQ65+AQ71","v":0},null,null,null,null,null,null,null,null,{"$f":"AZ62+AZ65+AZ71+AZ72","v":0}]
[null,null,null,null,"VALOARE TVA aferentă cheltuielilor eligibile şi neeligibile"]
[null,null,null,null,"TOTAL DEVIZ CAPITOLUL 5 ( inclusiv TVA)",null,null,null,null,null,null,null,null,null,null,null,null,null,null,null,null,null,null,null,null,null,null,null,null,null,null,null,null,null,null,null,null,null,null,null,null,null,{"$f":"AQ73+AZ73+AQ74+AZ74","v":0}]
[]
[null,null,null,null,null,null,null,null,null,null,null,null,null,null,null,null,null,null,null,null,null,null,null,null,null,null,null,null,null,null,null,null,null,null,null,null,null,null,null,null,null,null,"Anexa A3\nHG 907/2016"]
[]
[]
[]
["(Titlu deviz)"]
["Deviz capitolul 2- Cheltuieli pentru asigurarea utilităţilor necesare obiectivului - EURO"]
["Nr.crt",null,null,null,"Specificaţie",null,null,null,null,null,null,null,null,null,null,null,null,null,null,null,null,null,null,null,null,null,null,null,null,null,null,null,null,null,null,null,null,null,null,null,null,null,"Valoare eligibilă",null,null,null,null,null,null,null,null,"Valoare\nneeligibilă"]
[1,null,null,null,"Alimentare cu apă"]
[2,null,null,null,"Canalizare"]
[3,null,null,null,"Alimentare cu gaze naturale"]
[4,null,null,null,"Alimentare cu agent termic"]
[5,null,null,null,"Alimentare cu energie electrică"]
[6,null,null,null,"Telecomunicaţii (telefonie, radio-tv,etc)"]
[7,null,null,null,"Drumuri de acces"]
[8,null,null,null,"Căi ferate industriale"]
[9,null,null,null,"Alte utilități"]
[null,null,null,null,"Total valoare fără TVA",null,null,null,null,null,null,null,null,null,null,null,null,null,null,null,null,null,null,null,null,null,null,null,null,null,null,null,null,null,null,null,null,null,null,null,null,null,{"$f":"SUM(AQ84:AY92)","v":0},null,null,null,null,null,null,null,null,{"$f":"SUM(AZ84:BI92)","v":0}]
[null,null,null,null,"Valoare TVA aferentă cheltuielilor eligibile şi neeligibile"]
["TOTAL DEVIZ CAPITOLUL 2 (inclusiv TVA)",null,null,null,null,null,null,null,null,null,null,null,null,null,null,null,null,null,null,null,null,null,null,null,null,null,null,null,null,null,null,null,null,null,null,null,null,null,null,null,null,null,{"$f":"AQ93+AZ93+AQ94+AZ94","v":0}]
[]
[" Deviz capitolul 5 - Alte cheltuieli - EURO"]
["Nr.crt",null,null,null,"Specificaţie",null,null,null,null,null,null,null,null,null,null,null,null,null,null,null,null,null,null,null,null,null,null,null,null,null,null,null,null,null,null,null,null,null,null,null,null,null,"Valoare eligibilă",null,null,null,null,null,null,null,null,"Valoare\nneeligibilă"]
[]
["5.1 ",null,null,null,"Organizare de şantier",null,null,null,null,null,null,null,null,null,null,null,null,null,null,null,null,null,null,null,null,null,null,null,null,null,null,null,null,null,null,null,null,null,null,null,null,null,{"$f":"SUM(AQ101:AY102)","v":0},null,null,null,null,null,null,null,null,{"$f":"SUM(AZ101:BI102)","v":0}]
[null,null,null,null,"5.1.1 Lucrări de construcţii şi instalaţii aferente organizării de şantier"]
[null,null,null,null,"5.1.2 Cheltuieli conexe organizării de şantier"]
["5.2",null,null,null,"Comisioane, cote, taxe, costul creditului",null,null,null,null,null,null,null,null,null,null,null,null,null,null,null,null,null,null,null,null,null,null,null,null,null,null,null,null,null,null,null,null,null,null,null,null,null,{"$f":"SUM(AQ105:AY108)","v":0},null,null,null,null,null,null,null,null,{"$f":"SUM(AZ104:BI108)","v":0}]
[null,null,null,null,"5.2.1. Comisioanele şi dobânzile aferente creditului băncii finanţatoare"]
[null,null,null,null,"5.2.2. Cota aferentă ISC pentru controlul calităţii lucrărilor de construcţii"]
[null,null,null,null,"5.2.3. Cota aferentă ISC pentru controlul statului în amenajarea teritoriului, urbanism şi pentru autorizarea lucrărilor de construcţii"]
[null,null,null,null,"5.2.4. Cota aferentă Casei Sociale a Constructorilor - CSC"]
[null,null,null,null,"5.2.5. Taxe pentru acorduri, avize conforme şi autorizaţia de construire/desfiinţare"]
["5.3",null,null,null," Cheltuieli diverse si neprevazute"]
["5.4",null,null,null," Cheltuieli pentru informare și publicitate"]
[null,null,null,null,"TOTAL DEVIZ CAPITOLUL 5",null,null,null,null,null,null,null,null,null,null,null,null,null,null,null,null,null,null,null,null,null,null,null,null,null,null,null,null,null,null,null,null,null,null,null,null,null,{"$f":"AQ100+AQ103+AQ109","v":0},null,null,null,null,null,null,null,null,{"$f":"AZ100+AZ103+AZ109+AZ110","v":0}]
[null,null,null,null,"VALOARE TVA aferentă cheltuielilor eligibile şi neeligibile"]
[null,null,null,null,"TOTAL DEVIZ CAPITOLUL 5 ( inclusiv TVA)",null,null,null,null,null,null,null,null,null,null,null,null,null,null,null,null,null,null,null,null,null,null,null,null,null,null,null,null,null,null,null,null,null,null,null,null,null,{"$f":"AQ111+AZ111+AQ112+AZ112","v":0}]
[]
[null,null,null,null,null,null,null,null,null,null,null,null,null,null,null,null,null,null,null,null,null,null,null,null,null,null,null,null,null,null,null,null,null,null,null,null,null,null,null,null,null,null,"Anexa A3\nHG 907/2016"]
[]
[]
["(Titlu deviz)"]
["Deviz capitolul 2- Cheltuieli pentru asigurarea utilităţilor necesare obiectivului - EURO"]
["Nr.crt",null,null,null,"Specificaţie",null,null,null,null,null,null,null,null,null,null,null,null,null,null,null,null,null,null,null,null,null,null,null,null,null,null,null,null,null,null,null,null,null,null,null,null,null,"Valoare eligibilă",null,null,null,null,null,null,null,null,"Valoare\nneeligibilă"]
[1,null,null,null,"Alimentare cu apă"]
[2,null,null,null,"Canalizare"]
[3,null,null,null,"Alimentare cu gaze naturale"]
[4,null,null,null,"Alimentare cu agent termic"]
[5,null,null,null,"Alimentare cu energie electrică"]
[6,null,null,null,"Telecomunicaţii (telefonie, radio-tv,etc)"]
[7,null,null,null,"Drumuri de acces"]
[8,null,null,null,"Căi ferate industriale"]
[9,null,null,null,"Alte utilități"]
[null,null,null,null,"Total valoare fără TVA",null,null,null,null,null,null,null,null,null,null,null,null,null,null,null,null,null,null,null,null,null,null,null,null,null,null,null,null,null,null,null,null,null,null,null,null,null,{"$f":"SUM(AQ121:AY129)","v":0},null,null,null,null,null,null,null,null,{"$f":"SUM(AZ121:BI129)","v":0}]
[null,null,null,null,"Valoare TVA aferentă cheltuielilor eligibile şi neeligibile"]
["TOTAL DEVIZ CAPITOLUL 2 (inclusiv TVA)",null,null,null,null,null,null,null,null,null,null,null,null,null,null,null,null,null,null,null,null,null,null,null,null,null,null,null,null,null,null,null,null,null,null,null,null,null,null,null,null,null,{"$f":"AQ130+AZ130+AQ131+AZ131","v":0}]
[]
[" Deviz capitolul 5 - Alte cheltuieli - EURO"]
["Nr.crt",null,null,null,"Specificaţie",null,null,null,null,null,null,null,null,null,null,null,null,null,null,null,null,null,null,null,null,null,null,null,null,null,null,null,null,null,null,null,null,null,null,null,null,null,"Valoare eligibilă",null,null,null,null,null,null,null,null,"Valoare\nneeligibilă"]
[]
["5.1 ",null,null,null,"Organizare de şantier",null,null,null,null,null,null,null,null,null,null,null,null,null,null,null,null,null,null,null,null,null,null,null,null,null,null,null,null,null,null,null,null,null,null,null,null,null,{"$f":"SUM(AQ138:AY139)","v":0},null,null,null,null,null,null,null,null,{"$f":"SUM(AZ138:BI139)","v":0}]
[null,null,null,null,"5.1.1 Lucrări de construcţii şi instalaţii aferente organizării de şantier"]
[null,null,null,null,"5.1.2 Cheltuieli conexe organizării de şantier"]
["5.2",null,null,null,"Comisioane, cote, taxe, costul creditului",null,null,null,null,null,null,null,null,null,null,null,null,null,null,null,null,null,null,null,null,null,null,null,null,null,null,null,null,null,null,null,null,null,null,null,null,null,{"$f":"SUM(AQ142:AY145)","v":0},null,null,null,null,null,null,null,null,{"$f":"SUM(AZ141:BI145)","v":0}]
[null,null,null,null,"5.2.1. Comisioanele şi dobânzile aferente creditului băncii finanţatoare"]
[null,null,null,null,"5.2.2. Cota aferentă ISC pentru controlul calităţii lucrărilor de construcţii"]
[null,null,null,null,"5.2.3. Cota aferentă ISC pentru controlul statului în amenajarea teritoriului, urbanism şi pentru autorizarea lucrărilor de construcţii"]
[null,null,null,null,"5.2.4. Cota aferentă Casei Sociale a Constructorilor - CSC"]
[null,null,null,null,"5.2.5. Taxe pentru acorduri, avize conforme şi autorizaţia de construire/desfiinţare"]
["5.3",null,null,null," Cheltuieli diverse si neprevazute"]
["5.4",null,null,null," Cheltuieli pentru informare și publicitate"]
[null,null,null,null,"TOTAL DEVIZ CAPITOLUL 5",null,null,null,null,null,null,null,null,null,null,null,null,null,null,null,null,null,null,null,null,null,null,null,null,null,null,null,null,null,null,null,null,null,null,null,null,null,{"$f":"AQ137+AQ140+AQ146","v":0},null,null,null,null,null,null,null,null,{"$f":"AZ137+AZ140+AZ146+AZ147","v":0}]
[null,null,null,null,"VALOARE TVA aferentă cheltuielilor eligibile şi neeligibile"]
[null,null,null,null,"TOTAL DEVIZ CAPITOLUL 5 ( inclusiv TVA)",null,null,null,null,null,null,null,null,null,null,null,null,null,null,null,null,null,null,null,null,null,null,null,null,null,null,null,null,null,null,null,null,null,null,null,null,null,{"$f":"AQ148+AZ148+AQ149+AZ149","v":0}]

{"sheet":"Asociati","index":4,"n_rows":55,"n_cols":53,"rows_kept":55,"cut":false,"hidden":false,"merged":[[0,0,0,60],[1,0,1,60],[3,5,3,13],[4,17,4,58],[6,3,6,10],[6,24,6,49],[7,3,7,16],[7,24,7,49],[11,4,11,15],[11,18,11,20],[11,21,11,26],[11,28,11,35],[11,37,11,48],[11,51,11,58],[12,4,12,6],[12,7,12,9],[12,10,12,15],[12,18,13,20],[12,21,13,26],[12,28,13,35],[12,37,13,48],[12,51,13,58],[13,4,13,6],[13,7,13,9],[13,10,13,15],[15,2,15,28],[16,25,16,35],[17,3,17,22],[17,25,17,42],[17,44,17,58],[19,46,19,49],[19,52,19,57],[20,5,20,13],[23,7,23,18],[25,9,25,58],[19,3,19,10],[19,13,19,29],[19,31,19,34],[19,36,19,39],[19,41,19,44],[27,29,27,51],[28,4,28,17],[28,29,28,50],[38,51,38,58],[30,5,30,13],[31,17,31,58],[33,3,33,10],[33,24,33,49],[34,3,34,16],[34,24,34,49],[38,4,38,15],[38,18,38,20],[38,21,38,26],[38,28,38,35],[38,37,38,48],[52,9,52,58],[39,37,40,48],[39,51,40,58],[40,4,40,6],[40,7,40,9],[40,10,40,15],[42,2,42,28],[39,4,39,6],[39,7,39,9],[39,10,39,15],[39,18,40,20],[39,21,40,26],[39,28,40,35],[54,29,54,51],[55,4,55,17],[55,29,55,50],[43,25,43,35],[44,3,44,22],[44,25,44,42],[44,44,44,58],[46,3,46,10],[46,13,46,29],[46,31,46,34],[46,36,46,39],[46,41,46,44],[46,46,46,49],[46,52,46,57],[47,5,47,13],[50,7,50,18]]}
["B INFORMAŢII PRIVIND SOLICITANTUL"]
[]
[null,"Asociați"]
[null,null,null,null,null,"Persoană Fizică: "]
[null,null,null,"Nume și prenume asociat : "]
[]
[null,null,null,"Data naşterii",null,null,null,null,null,null,null,null,null,null,null,null,null,null,null,null,null,null,null,null,"Cod numeric personal"]
[]
[]
[]
[]
[null,null,null,null,"Act de identitate",null,null,null,null,null,null,null,null,null,null,null,null,null,"Seria",null,null,"Nr.",null,null,null,null,null,null,"Eliberat la data de",null,null,null,null,null,null,null,null,"de:",null,null,null,null,null,null,null,null,null,null,null,null,null,"Valabil până la:"]
[null,null,null,null,"B.I.",null,null,"C.I.",null,null,"Paşaport"]
[]
[]
[null,null,"Adresa și domiciliul asociatului:"]
[null,null,null,"Judeţ",null,null,null,null,null,null,null,null,null,null,null,null,null,null,null,null,null,null,null,null,null,"Localitate",null,null,null,null,null,null,null,null,null,null,null,null,null,null,null,null,null,null,"Sat"]
[]
[null,null,null,"Cod Poştal",null,null,null,null,null,null,null,null,null,"Strada",null,null,null,null,null,null,null,null,null,null,null,null,null,null,null,null,null,"Nr.",null,null,null,null,"Bloc",null,null,null,null,"Scara",null,null,null,null,"Etaj",null,null,null,null,null,"Apartament"]
[]
[null,null,null,null,null,"Persoană Juridică: "]
[]
[null,null,null,null,null,null,null,"Înregistrată în România"]
[null,null,null,null,null,null,null,"Înregistrată în altă țară"]
[]
[null,null,null,"Denumire : "]
[]
[null,null,null,null,"CUI",null,null,null,null,null,null,null,null,null,null,null,null,null,null,null,null,null,null,null,null,null,null,null,null,"Nr. Inreg. ONRC"]
[]
[]
[null,null,null,null,null,"Persoană Fizică: "]
[null,null,null,"Nume și prenume asociat : "]
[]
[null,null,null,"Data naşterii",null,null,null,null,null,null,null,null,null,null,null,null,null,null,null,null,null,null,null,null,"Cod numeric personal"]
[]
[]
[]
[]
[null,null,null,null,"Act de identitate",null,null,null,null,null,null,null,null,null,null,null,null,null,"Seria",null,null,"Nr.",null,null,null,null,null,null,"Eliberat la data de",null,null,null,null,null,null,null,null,"de:",null,null,null,null,null,null,null,null,null,null,null,null,null,"Valabil până la:"]
[null,null,null,null,"B.I.",null,null,"C.I.",null,null,"Paşaport"]
[]
[]
[null,null,"Adresa și domiciliul asociatului:"]
[null,null,null,"Judeţ",null,null,null,null,null,null,null,null,null,null,null,null,null,null,null,null,null,null,null,null,null,"Localitate",null,null,null,null,null,null,null,null,null,null,null,null,null,null,null,null,null,null,"Sat"]
[]
[null,null,null,"Cod Poştal",null,null,null,null,null,null,null,null,null,"Strada",null,null,null,null,null,null,null,null,null,null,null,null,null,null,null,null,null,"Nr.",null,null,null,null,"Bloc",null,null,null,null,"Scara",null,null,null,null,"Etaj",null,null,null,null,null,"Apartament"]
[]
[null,null,null,null,null,"Persoană Juridică: "]
[]
[null,null,null,null,null,null,null,"Înregistrată în România"]
[null,null,null,null,null,null,null,"Înregistrată în altă țară"]
[]
[null,null,null,"Denumire : "]
[]
[null,null,null,null,"CUI",null,null,null,null,null,null,null,null,null,null,null,null,null,null,null,null,null,null,null,null,null,null,null,null,"Nr. Inreg. ONRC"]